{"text_format":"1","workbook":"xlsx","n_sheets":23,"sheets":["Cover Page","Contents","Facility Info","Operational Data","Operational Summary","Perf. Form 1","Energy Form 1","Permit Compliance","Improvements","Public Liasion","CO2 N2O","Residue Quality ","Water","Air (periodic)","Air (CEMS)","HCl","SO2","NOx","TOC","Particulates","CO 0.5 hourly","CO 95% 10 min","NH3"],"not_rendered":{"charts":8,"images":3,"macros":1,"external_links":0,"defined_names":23,"comments":0,"pivot_tables":0},"unopened":[],"bounds":{"document_bytes":16777216,"sheet_cells":100000,"rows_first":2000,"rows_last":500,"rows_between":2000,"halvings":0,"cell_chars":16384,"cell_head_chars":4096},"cells_cut":0,"cells_raw":0,"read":"whole","date_system":"1900"}

{"sheet":"Cover Page","index":0,"n_rows":53,"n_cols":14,"rows_kept":53,"cut":false,"hidden":false,"merged":[[13,13,18,15],[34,1,34,8],[0,3,5,6],[7,1,23,8],[28,1,28,8],[30,1,30,8],[32,1,32,8],[48,2,48,3],[48,6,48,8],[52,2,52,3],[36,1,36,8],[40,2,40,8],[42,2,42,4],[44,2,44,4],[46,2,46,3],[46,6,46,8]]}
[null,null,null,"Add company logo"]
[null,null,null,null,null,null,null,null,null,null," ",null,null,"Version 23.4a (for incinerators) - 15/11/2023"]
[]
[null,null,null,null,null,null,null,null,null,null,null,null,null,"Note that there is another version of this template available for co-incinerators"]
[]
[]
[]
[null,"Add photo"]
[]
[]
[]
[]
[null,null,null,null,null,null,null,null,null,null,null,null,null,"Notes:"]
[null,null,null,null,null,null,null,null,null,null,null,null,null,"This template may require adjustments by individual operators to meet specific reporting requirements as defined in the site Permit(s)"]
[]
[]
[]
[]
[]
[]
[]
[]
[]
[]
[]
[]
[]
[]
[null,"Annual Performance Report 2023"]
[]
[null,"Permit EPR/NP3738SY"]
[]
[null,"SELCHP"]
[]
[null,"South East London Combined Heat and Power"]
[]
[null,"Veolia SELCHP Ltd"]
[]
[null,"Year:",2023]
[]
[null,"Address:","The Kennels Site, Landmann Way, Lewisham"]
[]
[null,"Tel: ","02035676100"]
[]
[null,"Email: ","enquiries@selchp.com"]
[]
[null,"Prepared by:","Ellen Raymond",null,null,"Position:","Environmental Engineer (ERF)"]
[]
[null,"Approved by:","Husain Suwasrawala",null,null,"Position:","General Manager"]
[]
[null,"Version:",1]
[]
[null,"Issue Date:","2023-01-24"]

{"sheet":"Contents","index":1,"n_rows":45,"n_cols":8,"rows_kept":45,"cut":false,"hidden":false,"merged":[[8,1,8,6],[3,1,3,6],[4,1,4,6],[5,1,5,6],[6,1,6,6],[7,1,7,6],[21,1,21,6],[9,1,9,6],[10,1,10,6],[11,1,11,6],[13,1,13,6],[14,1,14,6],[15,1,15,6],[16,1,16,6],[17,1,17,6],[18,1,18,6],[19,1,19,6],[20,1,20,6],[12,1,12,6],[36,1,36,6],[22,1,22,6],[23,1,23,6],[24,1,24,6],[27,1,27,6],[28,1,28,6],[29,1,29,6],[30,1,30,6],[31,1,31,6],[32,1,32,6],[35,1,35,6],[44,0,47,9],[37,1,37,6],[38,1,38,6],[39,1,39,6],[40,1,40,6],[41,1,41,6],[42,1,42,6]]}
[{"$f":"+'Cover Page'!$B$29","v":"Annual Performance Report 2023"},null,null,null,{"$f":"+'Cover Page'!$B$33","v":"SELCHP"}]
[]
["Contents"]
["Section","Subject",null,null,null,null,null,"Page "]
[null,"Facility Information",null,null,null,null,null,3]
[null,"Operational Data",null,null,null,null,null,4]
[null,"Operational Summary",null,null,null,null,null,6]
[null,"Performance Form 1",null,null,null,null,null,7]
[null,"Energy Form 1",null,null,null,null,null,8]
[null,"Permit Compliance",null,null,null,null,null,9]
[null,"Improvements",null,null,null,null,null,10]
[null,"Public Liasion",null,null,null,null,null,11]
[null,"Carbon dioxide and nitrous oxide emissions",null,null,null,null,null,12]
[null,"Residue Quality ",null,null,null,null,null,14]
[null,"Emissions to Water",null,null,null,null,null,15]
[null,"Emissions to Air (periodically monitored)",null,null,null,null,null,16]
[null,"Emissions to Air (continuously monitored)",null,null,null,null,null,17]
[null,"Hydrogen Chloride emissions",null,null,null,null,null,18]
[null,"Sulphur Dioxdie emsissions",null,null,null,null,null,19]
[null,"Oxides of Notrigen emissions",null,null,null,null,null,20]
[null,"Total Organic Carbon emissions",null,null,null,null,null,21]
[null,"Particulate Matter emissions",null,null,null,null,null,22]
[null,"Carbon Monoxide emissions",null,null,null,null,null,24]
[null,"Ammonia emissions",null,null,null,null,null,25]
[]
[]
["Version Control"]
["Section","Information",null,null,null,null,null,"Date"]
[]
[]
[]
[]
[]
[]
["Distribution"]
["Copy","Name, Role",null,null,null,null,null,"No."]
[]
[]
[]
[]
[]
[]
[]
[]
["This report is required under the Industrial Emissions Directive’s Article 55(2) requirements on reporting and public information on waste incineration plants and co-incineration plants, which require the operator to produce an annual report on the functioning and monitoring of the plant and make it available to the public. "]

{"sheet":"Facility Info","index":2,"n_rows":22,"n_cols":11,"rows_kept":22,"cut":false,"hidden":false,"merged":[[4,0,17,8],[4,10,13,13],[21,10,30,13],[21,0,51,8]]}
[{"$f":"+'Cover Page'!$B$29","v":"Annual Performance Report 2023"},null,null,null,{"$f":"+'Cover Page'!$B$33","v":"SELCHP"}]
[]
["Plant Description and Design",null,null,null,null,null,null,null,null,null,"Notes:"]
[]
["In 1986, faced with the increasing scarcity and environmental problems of landfill, the London Boroughs of Lewisham, Southwark and Greenwich came together to search for a realistic alternative. In 1988, they formed a Consortium - South East London Combined Heat and Power - from which SELCHP, Energy Recovery Facility (ERF), now takes its name. The facility recovers heat energy from the combustion of non-hazardous waste to raise steam, to generate electricity from a steam turbine which is then exported to the National Grid. Residual steam from the process is used to heat a district heating network, which supplies heat for domestic heating and hot water to local residents. Strict environmental controls and proven operating experience ensure that SELCHP remains consistently compliant with environmental permitting regulations.                                                                                                                                                                                                                                                         \n                                                                                                                                                                                                                                                                                                                                                                                                Technical details of the plant:\nTwo boilers supply steam to one common turbine\nMaximum Permitted Refuse throughput – 464,000 tonnes per annum (29 tonnes per hour per boiler)\nNumber of tipping bays – 11\nSteam output – 38 tonnes of steam per hour at 395°C and 46 bar\nFlue gas treatment – Selective Non-Catalytic Reduction (SNCR) DeNOx, activated carbon injection, semi-wet lime scrubber and high performance bag filters system, discharging into a 100 metre high chimney\nElectrical Generation Capacity – 35MWe and a District Heating potential capacity of 40MWth",null,null,null,null,null,null,null,null,null,"Include summary of plant design, design capacity, no. of combustion lines, electrical and heat capacity and any other general information that descibes the facility, its location and purpose "]
[]
[]
[]
[]
[]
[]
[]
[]
[]
[]
[]
[]
[]
[]
["Summary of Operational Processes and Procedures"]
[]
["The main purpose of the activity at SELCHP is to burn non-hazardous municipal waste and to recover energy in the form of steam for both; the export of heat via a district heating network and as electricity for export to the national grid. \nSELCHP is a consortium of Local Authorities and private enterprise that operates a 464,000 tonne per year, mass burn, municipal waste incinerator in Deptford in the London Borough of Lewisham.\nWaste is delivered both; directly to site by refuse collection vehicles and various other waste vehicles. Waste delivered to site is discharged into the waste storage bunker. Oversized and unsuitable wastes are rejected and removed. The waste is then charged into one of two furnaces by dedicated grab cranes. Hydraulic ram feeders control the charging rate of the waste to the furnace grate. Waste is burnt on a reverse acting stoker grate with combustion air supplied in a controlled manner to ensure efficient combustion. The production on Oxides of Nitrogen (NOx) by combustion is mitigated by the injection of ammonia solution into the furnace by a process of Selective Non-Catalytic Reduction (SNCR). Bottom ash from the grate is quenched in a water bath to prevent the release of dust and provide a gas seal, at the ash discharger outlet. Ferrous metal is recovered from the ash by a drum magnet. Residual ash is recovered and sent to a recycling facility in Greenwich, London.\nThe hot gases from the combustion process are passed through a boiler to raise steam, which is then forwarded to a steam turbine to generate up to 32 MW of electricity for export to the national grid. Excess steam, of too low an enthalpy to generate electricity, is taken off the turbine, allowing for the export of heat via the District Heating network to local residents. This heat would otherwise be lost to atmosphere,as waste heat, via the Air Cooled Condenser (ACC).\nExhaust gasses from the boiler are sent to the flue gas treatment plant. Firstly activated carbon is injected to adsorb mercury, heavy metals, dioxins and dioxin like compounds. Secondly, a semi-dry lime scrubbing plant removes acid gasses, predominantly hydrogen chloride (HCl) and sulphur dioxide (SO2). Lastly, the flue gases pass through a series of bad filters to control particulate emissions. The cleaned gasses are discharged from a 100 meter, twin flue (one for each furnace) chimney.     \nSELCHP operates an Environmental Management system accredited to ISO 14001.\nThere are no European sites within 10 km. Air dispersion modeling has established that the site has minimal impact on sites of special scientific interest (SSSI) within that radius. All emissions from the plant have been modelled, demonstrating that it is unlikely to have a significant impact on local air quality, due to it urban setting. \nThere are no releases to controlled waters as part of the process. Process effluents are reused within the process. Residual effluents are released to sewer as trade effluent.\nA Household, commercial and industrial waste transfer station may also be operated within the permit boundary, under conditions set out in ‘Standard Rules Permit SR2008No1’ when required.\n",null,null,null,null,null,null,null,null,null,"Include summary of key processes and procedures such as (but not limited to); waste reception, control rooms, grate, bed and bolier, energy & heat  generation, cooling systems, residue management, emission controls, health and safety systems, maintenance"]

{"sheet":"Operational Data","index":3,"n_rows":64,"n_cols":10,"rows_kept":64,"cut":false,"hidden":false,"merged":[[5,9,7,9],[52,0,55,0],[33,1,38,1],[3,1,3,2],[7,1,19,1],[23,1,26,1],[28,1,29,1],[9,9,20,9],[21,9,25,9]]}
[{"$f":"+'Cover Page'!$B$29","v":"Annual Performance Report 2023"},null,null,null,{"$f":"+'Cover Page'!$B$33","v":"SELCHP"}]
[]
["Operational Data"]
["Plant Size",464000,null,"tonnes pa",30,"MWth",30,"MWe",null,"Notes:"]
["No. of combustion lines",2,null,"No. of Turbines:",null,1,null,null,null,"* - RDF to include SRF "]
[null,null,null,null,null,null,null,null,null,"** - Combusted tonnage = tonnes delivered in period + (tonnes in bunker at start of period – tonnes in bunker at end of period), or equivalent calculation depending on plant type"]
["Waste types received","Unit","Q1","Q2","Q3","Q4","Year Total","%"]
["Household / Local Authority","tonnes",87210.98,96779.520000000004,68226.34,99613.31,{"$f":"SUM(C8:F8)","v":351830.15},{"$f":"IF(G8>0,G8/$G$18,\"-\")","v":0.89786385155943282}]
["Commercial & Industrial ",null,46.94,31.6,362.28,38.9,{"$f":"SUM(C9:F9)","v":479.71999999999991},1.2242363165012749E-3,null,"*** - CHP plants only"]
["Hazardous ",null,"-","-","-","-",0,"-",null,"**** Availability Definition: 'the availability of a line is to be calculated by the number of hours the line reported Continuously Monitored emission levels to the Regulator through the calendar year divided by the total number of hours in that year. \n\nThe overall plant availability is calculated as the Mean of all lines in the plant. For clarity this includes periods of abnormal operation.'  \n\nRationale: The primary function of an Energy from Waste facility is the disposal of waste. It follows therefore that the availability of a plant is determined by the period of time a facility spends undertaking this activity."]
["Clinical",null,23.3,24.7,17.239999999999998,23.46,88.699999999999989,2.2636071306942192E-4]
["Waste wood (biomass) ",null,"-","-","-","-",0,"-"]
["Refuse Derived Fuel * - H'hold/LA",null,"-","-","-","-",{"$f":"SUM(C13:F13)","v":0},"-"]
["Refuse Derived Fuel *  - C&I",null,"-","-","-","-",0,"-"]
["MRF Residue",null,10560.44,11390.4,6494.86,11008.18,39453.880000000005,0.10068555141099669]
["Other [Please specify]",null,"-","-","-","-",0,"-"]
["Other [Please specify]",null,"-","-","-","-",0,"-"]
["Total waste received",null,{"$f":"SUM(C8:C17)","v":97841.66},{"$f":"SUM(D8:D17)","v":108226.22},{"$f":"SUM(E8:E17)","v":75100.72},{"$f":"SUM(F8:F17)","v":110683.85},391852.44999999995]
["Rejected Waste ",null,9.9600000000000009,0.18,0,14.38,{"$f":"SUM(C19:F19)","v":24.520000000000003},{"$f":"IF(G19>0,G19/$G$18,\"-\")","v":6.2574573669247198E-5}]
["Unprocessed waste transferred out",null,"-","-",684.84,"-",{"$f":"SUM(C20:F20)","v":684.84},{"$f":"IF(G20>0,G20/$G$18,\"-\")","v":1.7476986554505404E-3}]
["Total waste combusted **",null,97631.56,106141.9,74756.87,112473.2,{"$f":"SUM(C21:F21)","v":391003.52999999997}]
[null,null,null,null,null,null,null,null,null,"Password for protected cells\nA password has been set to prevent accidental  editing of cells with formulae. \nIf you still need to make an edit for some reason then the password = 1234"]
["Energy Usage / Export","Unit","Q1","Q2","Q3","Q4","Year Total","KWh/te"]
["Power Generated","MWh",59234.2,65019.97,46819.4,65860.899999999994,{"$f":"SUM(C24:F24)","v":236934.47},{"$f":"IF(G24>0,G24*1000/$G$21,\"-\")","v":605.96504077597467}]
["Power Exported",null,52326.21,57176.880000000005,40707.280000000006,58198.54,{"$f":"SUM(C25:F25)","v":208408.91},{"$f":"IF(G25>0,G25*1000/$G$21,\"-\")","v":533.01030300161233}]
["Power Used on site",null,6907.99,7843.09,6198.16,7989.8,{"$f":"SUM(C26:F26)","v":28939.039999999997},{"$f":"IF(G26>0,G26*1000/$G$21,\"-\")","v":74.012221833393667}]
["Power Imported",null,191.19,181.36,30.15,341.68,744.38,{"$f":"IF(G27>0,G27*1000/$G$21,\"-\")","v":1.9037679787699104}]
["Parasitic Load","%",{"$f":"IF(C24>0,1-C25/(C24+C27),\"-\")","v":0.11946375110032936},{"$f":"IF(D24>0,1-D25/(D24+D27),\"-\")","v":0.12307187598780567},{"$f":"IF(E24>0,1-E25/(E24+E27),\"-\")","v":0.13110627530040297},{"$f":"IF(F24>0,1-F25/(F24+F27),\"-\")","v":0.12090223674062228},{"$f":"IF(G24>0,1-G25/(G24+G27),\"-\")","v":0.12314911486655211}]
["Thermal Energy Produced ***","MWh","-","-","-","-",{"$f":"SUM(C29:F29)","v":0},{"$f":"IF(G29>0,G29*1000/$G$21,\"-\")","v":"-"}]
["Thermal Energy Exported ***",null,15117.84,9624.23,3973.4,13316.48,42031.95,{"$f":"IF(G30>0,G30*1000/$G$21,\"-\")","v":107.49762284754821}]
["R1 value (if applicable)","R1",null,null,null,null,0.68]
[]
["Waste Disposal & Recovery","Unit","Q1","Q2","Q3","Q4","Year Total","% inputs"]
["APC Residues - produced","tonnes",2467.75,2681.62,1959,2801.82,{"$f":"SUM(C34:F34)","v":9910.19},{"$f":"IF(G34>0,G34/$G$21,\"-\")","v":2.5345525652926974E-2}]
["IBA - produced",null,18275.099999999999,21565.439999999999,15147.48,19966.68,74954.699999999983,{"$f":"IF(G35>0,G35/$G$21,\"-\")","v":0.19169826932253012}]
["Metals recycling",null,1182.2,764.98,1054.3800000000001,1198.54,{"$f":"SUM(C36:F36)","v":4200.1000000000004},1.0741846755194257E-2]
["Other",null,0,0,0,0,{"$f":"SUM(C37:F37)","v":0},"-"]
["Other",null,0,0,0,0,0,"-"]
["Other",null,0,0,0,0,0,"-"]
[]
["Raw Material Usage","Unit","Q1","Q2","Q3","Q4","Year Total","kg or Ltr /te"]
["Mains Water","ltrs",30285530,59002570,54531900,48955000,{"$f":"SUM(C42:F42)","v":192775000},{"$f":"IF(G42>0,G42/$G$21,\"-\")","v":493.02623943062616}]
["Other Water","ltrs","-","-","-","-",0,{"$f":"IF(G43>0,G43/$G$21,\"-\")","v":"-"}]
["Ammonia","kgs",328300,369920,296100,411590,1405910,3.5956452873967661]
["Urea","kgs","-","-","-","-",{"$f":"SUM(C45:F45)","v":0},"-"]
["Activated Carbon","kgs",21350,25900,17840,23000,88090,0.22529208368016526]
["Lime / hydrated lime","kgs",798680,888960,609440,900300,3197380,8.1773686288714593]
["Fuel oil","ltrs",107399,223547.72,140503,255870,727319.72,1.8601359430182127]
["Gas","cuf","-","-","-","-",0]
["Other",null,"-","-","-","-",0]
[]
["Summary ","Line/Unit","Q1","Q2","Q3","Q4","Year Total",null,"Hrs in year "]
["Availability of waste combustion by line, hrs ****",1,1944.88,2048.75,1458.03,2113.88,{"$f":"SUM(C53:F53)","v":7565.54},{"$f":"+G53/$I$53","v":0.86364611872146113},8760]
[null,2,1700.52,1953.75,1397.95,2034.47,{"$f":"SUM(C54:F54)","v":7086.6900000000005},{"$f":"+G54/$I$53","v":0.80898287671232882}]
[null,4,0,0,0,0,{"$f":"SUM(C55:F55)","v":0},0]
[null,5,0,0,0,0,{"$f":"SUM(C56:F56)","v":0},0]
["Overall Availability, mean avg. of all lines, hrs",null,1822.7,2001.25,1427.99,2074.1750000000002,{"$f":"SUM(C57:F57)","v":7326.1149999999998},0.83631449771689492]
["Hours of turbine operations, hrs",1,2013.67,2105.17,1573.03,2094.33,{"$f":"SUM(C58:F58)","v":7786.2},0.88883561643835618]
["Hours of turbine operations, hrs",2,0,0,0,0,0,0]
["Hours of heat / steam export",null,0,0,0,0,0,{"$f":"IF(B60>0,G59/I53,\"n/a\")","v":"n/a"}]
["Net Calorific Value of waste","MJ/kg",9.3606700000000007,9.3610000000000007,9.4203299999999999,9.1750000000000007,{"$f":"AVERAGE(C61:F61)","v":9.3292500000000018}]
["Abnormal Events","qty.",0,0,0,0,0,{"$f":"IF(G62>0,\"yes\",\"no\")","v":"no"}]
["Abnormal operation","hours",0,0,0,0,0,{"$f":"+(G63)/I53","v":0}]
["Permit Breaches","qty.",0,0,0,0,0,{"$f":"IF(G64>0,\"yes\",\"no\")","v":"no"}]

{"sheet":"Operational Summary","index":4,"n_rows":31,"n_cols":5,"rows_kept":31,"cut":false,"hidden":false,"merged":[[4,0,26,8],[30,0,51,8]]}
[{"$f":"+'Cover Page'!$B$29","v":"Annual Performance Report 2023"},null,null,null,{"$f":"+'Cover Page'!$B$33","v":"SELCHP"}]
[]
["Summary of Plant Operations and Maintenance during the reporting year"]
[]
["Overall plant availability for 2023 was 83.6%, a significant decrease compared to 2022. This was due to the MET Police enforced shutdown in January to allow for a Police investigation and delayed return to service of the station following the annual maintenance shutdown.\nBoiler 1: In addition to January's enforced shutdown and delayed outage in September, the boiler suffered multiple grate breakdowns in March, April, June and August due to NOx cannister explosions. \n\nBoiler 2:  In addition to January's enforced shutdown and delayed outage in September, the boiler suffered multiple grate breakdowns in April, May, June, August and November.\n\nThe annual outage ran from the 05/09/23 to the 03/10/2023 for boiler 1 and from the 02/09/23 to the 3/10/2023 for boiler 2.\n"]
[]
[]
[]
[]
[]
[]
[]
[]
[]
[]
[]
[]
[]
[]
[]
[]
[]
[]
[]
[]
[]
[]
[]
["Summary of Residue Handling for the reporting year"]
[]
["All incinerator bottom ash is loaded to tipper trucks by excavators and sent for reprocessing at a dedicated and permitted facility in Charlton, London (Recycling code R4). Where the majority of ferrous and non-ferrous metals are extracted for sale to the metals traders. Residual aggregates are sold for use in the a range of permissible construction projects. Air pollution control residue, transported as a powder and loaded into road tankers, is predominantly sent to Veolia Empire Works, Walsall for treatment with waste industrial sulphuric/phosphoric acid and disposal to landfill (Disposal code D9). The remainder was sent to a deep storage facility (disposal code D12). Ferrous metal separated from the IBA is sold to and collected by reputable scrap metal traders. In 2023, less ferrous metal was reocovered directly from IBA on site in due to the ACME magnet failures."]

{"sheet":"Perf. Form 1","index":5,"n_rows":54,"n_cols":10,"rows_kept":54,"cut":false,"hidden":false,"merged":[[9,0,9,9],[10,0,10,1],[10,2,10,3],[10,4,10,5],[10,6,10,7],[10,8,10,9],[2,0,2,4],[2,6,2,8],[3,1,3,4],[5,3,5,4],[5,6,5,7],[8,0,8,1],[8,2,8,3],[8,4,8,5],[8,6,8,7],[8,8,8,9],[11,0,11,1],[11,2,11,3],[11,4,11,5],[11,6,11,7],[11,8,11,9],[12,0,12,1],[12,2,12,3],[12,4,12,5],[12,6,12,7],[12,8,12,9],[15,0,15,1],[15,2,15,3],[15,4,15,5],[15,6,15,7],[15,8,15,9],[16,0,16,9],[13,0,13,1],[13,2,13,3],[13,4,13,5],[13,6,13,7],[13,8,13,9],[14,0,14,3],[14,4,14,5],[14,6,14,7],[14,8,14,9],[17,0,17,1],[17,2,17,3],[17,4,17,5],[17,6,17,7],[17,8,17,9],[18,0,18,1],[18,2,18,3],[18,4,18,5],[18,6,18,7],[18,8,18,9],[19,0,19,1],[19,2,19,3],[19,4,19,5],[19,6,19,7],[19,8,19,9],[20,0,20,1],[20,2,20,3],[20,4,20,5],[20,6,20,7],[20,8,20,9],[21,0,21,1],[21,2,21,3],[21,4,21,5],[21,6,21,7],[21,8,21,9],[22,0,22,3],[22,4,22,5],[22,6,22,7],[22,8,22,9],[31,0,31,3],[31,7,31,8],[32,0,32,3],[32,4,32,5],[32,7,32,8],[33,0,33,3],[33,4,33,5],[33,7,33,8],[23,0,23,3],[23,4,23,5],[23,6,23,7],[23,8,23,9],[25,0,25,9],[26,0,28,9],[36,0,36,3],[36,4,36,5],[36,7,36,8],[37,0,37,3],[37,4,37,5],[37,7,37,8],[34,0,34,3],[34,4,34,5],[34,7,34,8],[35,0,35,3],[35,4,35,5],[35,7,35,8],[47,0,47,1],[49,0,49,9],[50,0,51,9],[38,0,38,9],[39,0,40,9],[43,0,43,1],[43,2,43,9],[45,0,45,1],[46,0,46,1]]}
[{"$f":"+'Cover Page'!C39","v":2023}," Annual Reporting Performance Form 1"]
[]
[{"$f":"+'Cover Page'!B31","v":"Permit EPR/NP3738SY"},null,null,null,null,"Operator: ","Veolia SELCHP Ltd"]
["Facility:",{"$f":"+'Cover Page'!B33:I33","v":"SELCHP"},null,null,null,"Form:","Performance 1"]
[]
["Reporting  Period from: ",null,null,"2023-01-01",null,"to:","2023-12-31"]
[]
[{"$f":"+A1","v":2023},"Annual Reporting of Waste Disposal and Recovery"]
["Waste Description",null,"Disposal Route(s)",null,"Disposal Tonnes",null,"Recovery Tonnes",null,"% / tonne of waste incinerated"]
["1) Hazardous Wastes"]
["APC Residues",null,2,null,{"$f":"'Operational Data'!G34","v":9910.19},null,0,null,{"$f":"IF((E11+G11)>0,(E11+G11)/'Operational Data'!$G$21, \"-\")","v":2.5345525652926974E-2}]
["IBA",null,0,null,0,null,0,null,{"$f":"IF((E12+G12)>0,(E12+G12)/'Operational Data'!$G$21, \"-\")","v":"-"}]
[null,null,null,null,null,null,null,null,{"$f":"IF((E13+G13)>0,(E13+G13)/'Operational Data'!$G$21, \"-\")","v":"-"}]
[null,null,null,null,null,null,null,null,{"$f":"IF((E14+G14)>0,(E14+G14)/'Operational Data'!$G$21, \"-\")","v":"-"}]
["Total Hazardous Waste",null,null,null,{"$f":"SUM(E11:F14)","v":9910.19},null,{"$f":"SUM(G11:H14)","v":0},null,{"$f":"IF((E15+G15)>0,(E15+G15)/'Operational Data'!$G$21, \"-\")","v":2.5345525652926974E-2}]
[]
["2) Non-Hazardous Wastes"]
["IBA",null,1,null,0,null,{"$f":"'Operational Data'!G35","v":74954.699999999983},null,{"$f":"IF((E18+G18)>0,(E18+G18)/'Operational Data'!$G$21, \"-\")","v":0.19169826932253012}]
["Ferrous Metal",null,2,null,0,null,{"$f":"'Operational Data'!G36","v":4200.1000000000004},null,{"$f":"IF((E19+G19)>0,(E19+G19)/'Operational Data'!$G$21, \"-\")","v":1.0741846755194257E-2}]
["Process Water",null,null,null,null,null,null,null,{"$f":"IF((E20+G20)>0,(E20+G20)/'Operational Data'!$G$21, \"-\")","v":"-"}]
[null,null,null,null,null,null,null,null,{"$f":"IF((E21+G21)>0,(E21+G21)/'Operational Data'!$G$21, \"-\")","v":"-"}]
[null,null,null,null,null,null,null,null,{"$f":"IF((E22+G22)>0,(E22+G22)/'Operational Data'!$G$21, \"-\")","v":"-"}]
["Total Non-Hazardous Waste",null,null,null,{"$f":"SUM(E18:F22)","v":0},null,{"$f":"SUM(G18:H22)","v":79154.799999999988},null,{"$f":"IF((E23+G23)>0,(E23+G23)/'Operational Data'!$G$21, \"-\")","v":0.20244011607772439}]
["TOTAL WASTE",null,null,null,{"$f":"+E23+E15","v":9910.19},null,{"$f":"+G23+G15","v":79154.799999999988},null,{"$f":"IF((E24+G24)>0,(E24+G24)/'Operational Data'!$G$21, \"-\")","v":0.22778564173065138}]
[]
["Operator’s comments :"]
[]
[]
[]
[]
[{"$f":"+A1","v":2023},"Annual Reporting of Water and Other Raw Material Usage"]
["Raw Material",null,null,null,"Usage",null,"Unit","Specific Useage",null,"Unit"]
["Mains Water",null,null,null,{"$f":"+'Operational Data'!G42/1000","v":192775},null,"m3",{"$f":"IF(E33>0,E33/'Operational Data'!$G$21,\"-\")","v":0.49302623943062612},null,"m3/te"]
["Total Water",null,null,null,{"$f":"+'Operational Data'!G43+'Operational Data'!G42/1000","v":192775},null,"m3",{"$f":"IF(E34>0,E34/'Operational Data'!$G$21,\"-\")","v":0.49302623943062612},null,"m3/te"]
["Urea / Ammonia",null,null,null,{"$f":"+'Operational Data'!G44","v":1405910},null,"kg",{"$f":"IF(E35>0,E35/'Operational Data'!$G$21,\"-\")","v":3.5956452873967661},null,"kg/te"]
["Activated Carbon",null,null,null,{"$f":"+'Operational Data'!G46","v":88090},null,"kg",{"$f":"IF(E36>0,E36/'Operational Data'!$G$21,\"-\")","v":0.22529208368016526},null,"kg/te"]
["Lime / hydrated lime / Sodium Bicarb.",null,null,null,{"$f":"+'Operational Data'!G47","v":3197380},null,"kg",{"$f":"IF(E37>0,E37/'Operational Data'!$G$21,\"-\")","v":8.1773686288714593},null,"kg/te"]
[]
["Operator’s comments :"]
[]
[]
[]
[{"$f":"+A31","v":2023},"Annual Reporting of other performance indicators "]
["Parameter",null,"Results by Line"]
[null,null,"A1","A2","A3","A4","A5",null,"Turbine 1","Turbine 2"]
["Operating hours for the year, hours",null,7565.55,7086.68,null,null,null,null,7786.2]
["Number of periods of abnormal operation, qty.",null,0,0]
["Cumulative hours of abnormal operation for this year, hours",null,0,0]
[]
["Operator’s comments :"]
[]
[]
[]
["Signed: ","E. Raymond",null,null,null,null,"Date:","2024-01-17"]

{"sheet":"Energy Form 1","index":6,"n_rows":28,"n_cols":8,"rows_kept":28,"cut":false,"hidden":false,"merged":[[2,6,2,8],[4,1,4,4],[6,3,6,4],[6,6,6,7],[8,0,8,2],[8,3,8,4],[8,6,8,8],[9,0,9,2],[9,3,9,4],[9,6,9,8],[10,0,10,2],[10,3,10,4],[10,6,10,8],[11,0,11,2],[11,3,11,4],[11,6,11,8],[12,0,12,2],[12,3,12,4],[12,6,12,8],[13,0,13,2],[13,3,13,4],[13,6,13,8],[14,0,14,2],[14,3,14,4],[14,6,14,8],[15,0,15,2],[15,3,15,4],[15,6,15,8],[17,0,17,8],[18,0,24,8]]}
[{"$f":"+'Cover Page'!C39","v":2023}," Annual Reporting of Energy Usage/Export"]
[]
[{"$f":"+'Cover Page'!B31","v":"Permit EPR/NP3738SY"},null,null,null,null,"Operator: ","Veolia SELCHP Ltd"]
[]
["Facility:",{"$f":"+'Cover Page'!B33:I33","v":"SELCHP"},null,null,null,"Form:","Energy 1"]
[]
["Reporting  Period from: ",null,null,{"$f":"+'Perf. Form 1'!D6:E6","v":"2023-01-01"},null,"to:",{"$f":"+'Perf. Form 1'!G6:H6","v":"2023-12-31"}]
[]
["Energy Source",null,null,"Energy Usage",null,"Unit","Specific Useage (KWh/tonne incinerated"]
["Electricity Produced",null,null,{"$f":"+'Operational Data'!G24","v":236934.47},null,"MWh",{"$f":"+'Operational Data'!H24","v":605.96504077597467}]
["Electricity Imported   ",null,null,{"$f":"+'Operational Data'!G27","v":744.38},null,"MWh",{"$f":"+'Operational Data'!H27","v":1.9037679787699104}]
["Electricity Exported",null,null,{"$f":"+'Operational Data'!G25","v":208408.91},null,"MWh",{"$f":"+'Operational Data'!H25","v":533.01030300161233}]
["Gas Oil",null,null,"-",null,"tonnes"]
["Steam/hot water exported",null,null,{"$f":"+'Operational Data'!G30","v":42031.95},null,"GWh",{"$f":"+'Operational Data'!H30","v":107.49762284754821}]
[]
[]
[]
["Operator’s comments :"]
["Hot water export is dependent on demand (ambient temperature) not operational performance."]
[]
[]
[]
[]
[]
[]
[]
[]
["Signed: ","E. Raymond",null,null,null,null,"Date:","2024-01-17"]

{"sheet":"Permit Compliance","index":7,"n_rows":34,"n_cols":12,"rows_kept":34,"cut":false,"hidden":false,"merged":[[18,0,18,8],[33,4,33,8],[9,0,9,1],[9,2,9,4],[9,5,9,8],[10,0,10,1],[10,2,10,4],[10,5,10,8],[11,0,11,1],[11,2,11,4],[11,5,11,8],[12,0,12,1],[12,2,12,4],[12,5,12,8],[13,0,13,1],[13,2,13,4],[13,5,13,8],[7,0,7,1],[7,2,7,8],[8,0,8,1],[8,2,8,4],[8,5,8,8],[14,0,14,1],[14,2,14,4],[14,5,14,8],[15,0,15,1],[16,2,16,4],[16,5,16,8],[15,2,15,4],[15,5,15,8],[16,0,16,1],[19,1,19,3],[19,4,19,6],[19,7,19,9],[20,1,20,3],[20,4,20,6],[20,7,20,9],[26,0,26,8],[21,1,21,3],[21,4,21,6],[21,7,21,9],[22,1,22,3],[22,4,22,6],[22,7,22,9],[32,1,32,3],[32,4,32,6],[32,7,32,9],[29,1,29,3],[29,4,29,6],[29,7,29,9],[30,1,30,3],[30,4,30,6],[30,7,30,9],[8,11,16,11],[31,1,31,3],[31,4,31,6],[31,7,31,9],[27,1,27,3],[27,4,27,6],[27,7,27,9],[28,1,28,3],[28,4,28,6],[28,7,28,9],[23,1,23,3],[23,4,23,6],[23,7,23,9],[24,1,24,3],[24,4,24,6],[24,7,24,9]]}
[{"$f":"+'Cover Page'!$B$29","v":"Annual Performance Report 2023"},null,null,null,{"$f":"+'Cover Page'!$B$33","v":"SELCHP"}]
[]
["Summary of Permit Compliance"]
[]
["Compliance with permit limits for continuously monitored pollutants"]
[]
["The plant met its emission limits as shown in the table below:"]
["Substance",null,"Percentage time compliant during operationNote 1",null,null,null,null,null,null,null,null,"Notes:"]
[null,null,"Half-hourly limit",null,null,"Daily limit",null,null,null,null,null,"Note 1: Please report to 2 decimal places, i.e. xx.xx%\n\nNote 2: Please provide a brief summary of each notification or non-compliance in the table (rather than just referring to notifications that were sent to the Regulator), including stating the value of measured result for any ELV exceedances.   \n\n"]
["Particulates",null,1,null,null,1]
["Oxides of nitrogen",null,1,null,null,1]
["Sulphur dioxide",null,1,null,null,1]
["Carbon monoxide",null," 100% of 95% of 10-min averages",null,null,1]
["Total organic carbon",null,1,null,null,1]
["Hydrogen chloride",null,1,null,null,1]
["Hydrogen fluoride",null,1,null,null,1]
[]
[]
["Summary of any notifications or non-compliances under the permit"]
["Date","Summary of notification or non-compliance [including Line/Reference]Note 2",null,null,"Reason ",null,null,"Measures taken to prevent reoccurrence"]
[]
[]
[]
[]
[]
[]
["Summary of any complaints received and actions to taken to resolve them."]
["Date","Summary of complaint [including Line/Reference]",null,null,"Reason *",null,null,"Measures taken to prevent reoccurrence"]
["2023-01-18","114946 - Odour complaint from member of the public, communicated by the EA officer",null,null,"Police investigation, backloading of waste in the tipping hall.",null,null,"Removal of waste concluded on 20/01/2023"]
["2023-03-09","120746 - Noise complaint. Investigation completed, no noise detected from site.",null,null,"Other industrial site in surrounding area.",null,null,"N/A"]
["2023-11-22","Odour complaint from member of the public, communicated by EA officer. Investigation completed, unsubstantiated ",null,null,"Other industrial site in surrounding area.",null,null,"N/A"]
[]
[]
[null,null,null,null,"* including whether substantiated by the operator or the EA"]

{"sheet":"Improvements","index":8,"n_rows":39,"n_cols":5,"rows_kept":39,"cut":false,"hidden":false,"merged":[[37,0,37,8],[38,0,47,8],[4,0,4,8],[5,0,13,8],[15,0,15,8],[16,0,24,8],[26,0,26,8],[27,0,35,8]]}
[{"$f":"+'Cover Page'!$B$29","v":"Annual Performance Report 2023"},null,null,null,{"$f":"+'Cover Page'!$B$33","v":"SELCHP"}]
[]
["Summary of Plant Improvements"]
[]
["Summary of any efficiency improvements that have been completed within the year."]
["In conjunction with Westminster city council, a private wire project was completed in 2023 to supply electrical power to charge the new EV refuse collection vehicles at a neighbouring vehicle depot. Transmission losses should be lower than supplying the same power to the national grid.                                                                                                                                                                                                    "]
[]
[]
[]
[]
[]
[]
[]
[]
[]
["Summary of any permit improvement conditions that have been completed within the year and the resulting environmental benefits."]
["Permit improvement condition report IC1 and IC2/3 were submitted on 30/09/2023. IC1 outlines the results of a trial conducted on site to determine the extent to which the current systems in place at the plant to minimise NOx emissions can be further optimised such that emissions are reduced as far as possible below 180 mg/Nm3 as a daily average, without significantly increasing emissions of other pollutants or having a significant negative effect on plant operation, reliability or bottom ash quality.                                                                                                     IC2/3 outlines that SELCHP has low and stable mercury and dioxin emissions, the report provides historic results for mercury and dioxins from bi-annual emission monitoring."]
[]
[]
[]
[]
[]
[]
[]
[]
[]
["Summary of any changes to the plant or operating techniques which required a variation to the permit and a summary of the resulting environmental impact."]
["None"]
[]
[]
[]
[]
[]
[]
[]
[]
[]
["Summary of any other improvements made to the plant or planned to be made and a summary of the resulting environmental benefits."]
["There is a proposal to replace the CEMS instrumentation in 2024.                                                                    "]

{"sheet":"Public Liasion","index":9,"n_rows":29,"n_cols":5,"rows_kept":29,"cut":false,"hidden":false,"merged":[[16,0,16,1],[16,2,16,8],[5,0,5,1],[5,2,5,8],[6,0,7,1],[6,2,7,8],[8,0,9,1],[8,2,9,8],[10,0,11,1],[10,2,11,8],[12,0,13,1],[12,2,13,8],[15,0,15,8],[17,0,18,1],[17,2,18,8],[19,0,20,1],[19,2,20,8],[21,0,22,1],[21,2,22,8],[23,0,24,1],[23,2,24,8],[25,0,26,1],[25,2,26,8],[28,0,28,8]]}
[{"$f":"+'Cover Page'!$B$29","v":"Annual Performance Report 2023"},null,null,null,{"$f":"+'Cover Page'!$B$33","v":"SELCHP"}]
[]
["Details of Public & Stakeholder Liasion"]
[]
["Summary of events held during the reporting year."]
["Date",null,"Description"]
["Various",null,"Site tours are laid on for internal and external stakeholders, as well as, higher education students. Tours are requested at selchp.com and are approved on a case by case basis. "]
[]
["N/A",null,"Due to the annual outage commencing in September, it has not been possible to hold our annual open day as part of Open House London which is held during September.\t\t\t\t\t\n\t\t\t\t\t\t"]
[]
[]
[]
[]
[]
[]
["List of events planned for next year"]
["Date",null,"Description"]
["Various",null,"Site tours are laid on for internal and external stakeholders, as well as, higher education students. Tours are requested at selchp.com and are approved on a case by case basis. "]
[]
["Unknown",null,"It is intended that an open day will be held in 2024.\t\t\t\t\t\n\t\t\t\t\t\t"]
[]
[]
[]
[]
[]
[]
[]
[]
["If you wish to be involved in the public liasion programme, please contact enquiries@selchp.com"]

{"sheet":"CO2 N2O","index":10,"n_rows":23,"n_cols":6,"rows_kept":23,"cut":false,"hidden":false,"merged":[[20,2,20,3],[23,1,23,3],[16,2,16,3],[4,0,4,3],[9,0,9,3],[17,0,17,3],[13,0,13,3],[12,0,12,1],[8,2,8,3],[11,2,11,3]]}
[{"$f":"+'Cover Page'!$B$29","v":"Annual Performance Report 2023"},null,{"$f":"+'Cover Page'!$B$33","v":"SELCHP"}]
[]
["Carbon dioxide emissions and biogenic content of waste inputs",null,null,null,null,"Notes:"]
[]
["Carbon dioxide emissions (all types of plant)"]
[null,"Annual mass of carbon dioxide released","tonnes ",325064]
[null,"Annual mass of carbon dioxide released per tonne of waste burned","t CO2 / t waste ",{"$f":"D6/'Operational Data'!G21","v":0.83135822328765174}]
[null,"Annual mass of carbon dioxide released per MWh of energy exported","t CO2 / MWh export ",{"$f":"D6/'Operational Data'!G25","v":1.5597413757406053}]
[null,"Description of how annual carbon dioxide mass emission has been calculated. \nSee Note 1","Average of average CO2% over the year converted to mg/m3 of flue gas and multiplied by total flue gas volume. All data from CEMS DHAS, QAL2'ed and QAL3'ed. Startup/shutdown data included.",null,null,"Note 1: Where available, data from CO2 CEMS should be used. \nOtherwise, only where no CEMS data is available, a suitable emissions factor should be used based on the tonnage of waste burned e.g.0.942 tCO2/t waste as per Tolvik report 2022, or other justified emissions factor  - refer to embedded Environment Agency guidance note above or updated version for suitable descriptive text."]
["Nitrous oxide emissions (only plants which use ammonia or urea to abate NOx emissions)"]
[null,"Annual mass emissions of nitrous oxide","tonnes N2O",8.2929999999999993]
[null,"Description of how annual nitrous oxide mass emission has been calculated\nSee Note 2","Calculated by CEMS DHAS. Includes startup/shutdown data.\n",null,null,"Note 2: Where available, data from N2O CEMS should be used. \nIf no CEMS data is available, from periodic monitoring. Otherwise, a suitable emissions factor should be used based on the tonnage of waste burned e.g. 0.0981 kgN20/t waste as per 2021 Pollution Inventory data for plants with urea-based SNCR - refer to embedded Environment Agency guidance note above or updated version for suitable descriptive text."]
["Total annual carbon dioxide and nitrous oxide emissions. \nSee Note 3. ",null,"tonnes CO2e",{"$f":"(D11*298)+D6","v":327535.31400000001},null,"Note 3: Total annual carbon dioxide and nitrous oxide emissions reported as carbon dioxide equivalent where 1 tonne nitrous oxide is equivalent to 298 tonne carbon dioxide"]
["Biogenic CO2 emissions (See Note 4)",null,null,null,null,"Note 4: Only plants combusting residual municipal waste, refuse derived fuel or solid recovered fuel"]
[null,"Percentage of total carbon dioxide emissions arising from biogenic waste","%",0.52070000000000005]
[null,"No. of measurements undertaken","Number",12]
[null,"Description of how percentage biogenic carbon dioxide emissions have been measured or calculated.\nSee Note 5","Calculated by BIOMA software using CEMS data.\t",null,null,"Note 5: Examples include direct measurement via C14 method or BIOMA software - refer to embedded Environment Agency guidance note above or updated version for suitable descriptive text, quoting standards where relevant. \nOtherwise, as an approximation (and in lieu of any more accurate metrics which may be developed in future), the measured or estimated biogenic fraction by net calorific value can be assumed to be the same as the biogenic CO2 fraction of the total CO2 emissions from the plant. "]
["Biogenic fraction of waste feedstock (See Note 4)"]
[null,"Yearly average biogenic percentage of the waste by net calorific value (NCV)","%",0.43159999999999998]
[null,"If sampling undertaken, no. of samples used to ascertain average biogenic % above","Number",12]
[null,"Description of how biogenic percentage (by NCV) has been calculated or estimated. \nSee Note 6","Calculated by BIOMA software using CEMS data.\t",null,null,"Note 6: Where available, data from waste sampling should be used; otherwise, an estimated figure with justification can be used, or a figure assumed on the basis of a national average e.g. 2017 WRAP data for residual waste of 51.8% biogenic energy content - refer to embedded Environment Agency guidance note above or updated version for suitable descriptive text, quoting standards where relevant. "]
[]
[null,"Comments:"]

{"sheet":"Residue Quality ","index":11,"n_rows":35,"n_cols":9,"rows_kept":35,"cut":false,"hidden":false,"merged":[[16,0,17,1],[16,2,17,6],[18,0,19,1],[18,2,19,6],[12,0,12,6],[13,0,13,1],[13,2,13,6],[5,0,6,6],[7,0,8,6],[9,0,10,6],[14,0,15,1],[14,2,15,6],[20,0,21,1],[20,2,21,6],[22,0,23,1],[22,2,23,6],[31,3,31,4],[27,2,28,2],[28,3,28,4],[28,5,28,6],[27,3,27,6],[26,0,26,6],[35,0,40,6],[32,3,32,4],[34,0,34,6],[27,0,28,1],[29,0,29,1],[30,0,30,1],[31,0,31,1],[32,0,32,1],[29,3,29,4],[30,3,30,4],[29,5,29,6],[30,5,30,6],[31,5,31,6],[32,5,32,6]]}
[{"$f":"+'Cover Page'!$B$29","v":"Annual Performance Report 2023"},null,null,null,{"$f":"+'Cover Page'!$B$33","v":"SELCHP"}]
[]
["Residue Quality Monitoring Requirements"]
[]
["Summary of monitoring undertaken and compliance"]
["IBA - Two samples per month are analysed according to the ESA protocol\none sample per quarter is analysed as per permit requirements."]
[]
["APC - One sample per quarter is analysed as per permit requirements"]
[]
[]
[]
[]
["Commentary on any specific events"]
["Date & Event",null,"Description"]
["October 2023 - Bi-monthly sampling",null,"The bi-monthly IBA samples couldn't be taken in September because of the prolonged outage, the September samples were taken in October once the boilers had returned to service. A total of 4 IBA samples were taken in October."]
[]
[]
[]
[]
[]
[]
[]
[]
[]
[]
[]
["Residue Quality Monitoring Results"]
["Parameter (unit) ",null,"Limit","Normal Operation "]
[null,null,null,"Bottom ash  ",null,"APC Residues"]
["Loss on Ignition (average %)",null,"<5%","-"]
["Total Organic Carbon (average %)",null,"<3%",1.18,null,null,null,null,"*Average TOV from Q1 to Q4"]
["No. of Assessments Undertaken",null,"---",24,null,4]
["No. of Hazardous Results",null,"---",0]
[]
["Comments :"]

{"sheet":"Water","index":12,"n_rows":23,"n_cols":9,"rows_kept":23,"cut":false,"hidden":false,"merged":[[5,0,6,8],[7,0,8,8],[9,0,10,8],[12,0,12,8],[13,0,13,1],[13,2,13,8],[21,0,21,8],[22,0,22,2],[22,3,22,4],[14,0,15,1],[14,2,15,8],[16,0,17,1],[16,2,17,8],[18,0,19,1],[18,2,19,8],[23,0,23,2],[23,3,23,4],[24,0,24,2],[24,3,24,4],[25,0,25,2],[25,3,25,4],[29,0,29,2],[29,3,29,4],[26,0,26,2],[26,3,26,4],[27,0,27,2],[27,3,27,4],[28,0,28,2],[28,3,28,4]]}
[{"$f":"+'Cover Page'!$B$29","v":"Annual Performance Report 2023"},null,null,null,{"$f":"+'Cover Page'!$B$33","v":"SELCHP"}]
[]
["Emissions to Water"]
[]
["Summary of monitoring undertaken and compliance"]
["Water is only discharged off site to commercial sewer, in accordance with Thames Water's discharge consent requirements. There are no monitoring parameters set our in the permit. Although, monthly aggregate samples are sent for laboratory analysis against the discharge consent parameters.   "]
[]
[]
[]
[]
[]
[]
["Commentary on any specific events"]
["Date & Event",null,"Description"]
[]
[]
[]
[]
[]
[]
[]
["Emissions to Water / Sewer"]
["Parameter",null,null,"Monitoring Frequency",null,"Limit","Target","Max.","Average"]

{"sheet":"Air (periodic)","index":13,"n_rows":39,"n_cols":13,"rows_kept":39,"cut":false,"hidden":false,"merged":[[39,0,39,9],[5,10,8,13],[9,10,11,13],[8,0,8,9],[5,0,6,9],[11,0,11,1],[12,0,12,1],[11,3,11,4],[12,3,12,4],[9,0,10,1],[9,5,9,9],[9,3,10,4],[9,2,10,2],[16,0,16,1],[17,0,17,1],[18,0,18,1],[13,0,13,1],[14,0,14,1],[15,0,15,1],[25,0,25,1],[26,0,26,1],[22,0,22,1],[23,0,23,1],[19,0,19,1],[20,0,20,1],[21,0,21,1],[24,0,24,1],[27,0,27,1],[28,0,28,1],[29,0,29,1],[30,0,30,1],[31,0,31,1],[37,3,37,4],[29,3,29,4],[30,3,30,4],[36,3,36,4],[38,0,38,9],[34,3,34,4],[35,3,35,4],[33,0,33,1],[34,0,34,1],[35,0,35,1],[36,0,36,1],[32,3,32,4],[37,0,37,1],[32,0,32,1],[27,3,27,4],[33,3,33,4],[19,3,19,4],[20,3,20,4],[21,3,21,4],[22,3,22,4],[23,3,23,4],[24,3,24,4],[31,3,31,4],[25,3,25,4],[26,3,26,4],[28,3,28,4],[13,10,14,12],[15,10,16,10],[15,11,16,11],[15,12,16,12],[18,3,18,4],[13,3,13,4],[14,3,14,4],[15,3,15,4],[16,3,16,4],[17,3,17,4]]}
[{"$f":"+'Cover Page'!$B$29","v":"Annual Performance Report 2023"},null,null,null,{"$f":"+'Cover Page'!$B$33","v":"SELCHP"}]
[]
["Emissions to Air (periodically monitored)"]
[]
["Summary of monitoring undertaken, standards used and compliance",null,null,null,null,null,null,null,null,null,"Notes:"]
["Bi-Annual monitoring. Standards used as applicable; EN 1948, EN 16911-1 (MID), EN 14792, EN 12619:2013, EN 15058, EN 14790, EN ISO 21258, EN 14789, EN 14791, MID 14385, EN 1911, ISO 11338, ISO 15713, EN 14385, EN 13284-1",null,null,null,null,null,null,null,null,null,"Template may require adjustment for any bespoke monitoring requirements of permit - please also check that all default ELV values, reference periods and the stated oxygen reference value match those for your plant, and edit if necessary!"]
[]
[]
["Results of emissions to air that are periodically monitored - oxygen reference 6% "]
["Substance",null,"Ref. Period","Emission Limit Value*",null,"Average",null,null,null,null,"User to add additional tables as necessary, depending on whether quarterly or bi-annual reporting is required for the compliance year"]
[null,null,null,null,null,"A1","A2","A3","A4","A5"]
["Hydrogen fluoride",null,"1 hr","2 mg/m3",null,6.5500000000000003E-2,4.0500000000000001E-2]
["Cd and Th and their compounds",null,"0.5-8hrs","0.05 mg/m3",null,1.8E-3,1.9E-3]
["Hg and its compounds",null,"0.5-8hrs","0.05 mg/m3",null,1.65E-3,2E-3,null,null,null,"* Denotes limits that were in force until 2 December 2023; from 3 December 2023 the following new limits applied (those not listed remained unchanged):"]
["Sb, As, Pb, Cr, Co, Cu, Mn, Ni, V and their compounds",null,"0.5-8hrs","0.5 mg/m3",null,0.13700000000000001,9.9000000000000005E-2]
["Dioxins & Furans (I-TEQ)",null,"6-8hrs","0.1 ng/m3",null,1.175E-2,1.5049999999999999E-2,null,null,null,"Substance","Reference Period","Emission Limit Value"]
["PCBs (WHO-TEQ Humans / Mammals)",null,"6-8hrs","None set ng/m3",null,2.0114999999999998E-3,2.787E-3]
["PCBs (WHO-TEQ Fish)",null,"6-8hrs","None set ng/m3",null,9.7499999999999998E-5,1.4300000000000001E-4,null,null,null,"Hydrogen fluoride","Average of three consecutive measurements of at least 30 minutes each","1 mg/m3"]
["PCBs (WHO-TEQ Birds)",null,"6-8hrs","None set ng/m3",null,4.1964999999999997E-3,8.2649999999999998E-3,null,null,null,"Cd and Th and their compounds","Average of three consecutive measurements of at least 30 minutes each","0.02 mg/m3"]
["Dioxins & Furans (WHO-TEQ Humans / Mammals)",null,"6-8hrs","None set ng/m3",null,1.1950000000000001E-2,1.5049999999999999E-2,null,null,null,"Hg and its compounds","Average of three consecutive measurements of at least 30 minutes each","0.02 mg/m3"]
["Dioxins & Furans (WHO-TEQ Fish)",null,"6-8hrs","None set ng/m3",null,1.1650000000000001E-2,1.5049999999999999E-2,null,null,null,"Sb, As, Pb, Cr, Co, Cu, Mn, Ni, V and their compounds","Average of three consecutive measurements of at least 30 minutes each","0.3 mg/m3"]
["Dioxins & Furans (WHO-TEQ Birds)",null,"6-8hrs","None set ng/m3",null,1.7399999999999999E-2,2.1250000000000002E-2,null,null,null,"Dioxins & Furans (I-TEQ)","6-8hrs","0.06 ng/m3"]
["Anthanthrene",null,"6-8hrs","None set µg/m3",null,2.3999999999999998E-3,9.1999999999999998E-3]
["Benzo(a)anthracene",null,"6-8hrs","None set µg/m3",null,8.0999999999999996E-3,4.4999999999999997E-3]
["Benzo(a)pyrene",null,"6-8hrs","None set µg/m3",null,2.3999999999999998E-3,1.8E-3]
["Benzo(b)fluoranthene",null,"6-8hrs","None set µg/m3",null,2.3999999999999998E-3,1.8E-3]
["Benzo(b)naptho(2,1-d) thiophene",null,"6-8hrs","None set µg/m3",null,2.3999999999999998E-3,1.8E-3]
["Benzo(c)phenanthrene",null,"6-8hrs","None set µg/m3",null,2.3999999999999998E-3,1.8E-3]
["Benzo(ghi)perylene",null,"6-8hrs","None set µg/m3",null,2.3999999999999998E-3,2.8999999999999998E-3]
["Benzo(k)fluoranthene",null,"6-8hrs","None set µg/m3",null,2.3999999999999998E-3,1.8E-3]
["Cholanthrene",null,"6-8hrs","None set µg/m3",null,2.3999999999999998E-3,1.8E-3]
["Chrysene",null,"6-8hrs","None set µg/m3",null,7.1999999999999998E-3,4.7999999999999996E-3]
["Cyclopenta(cd)pyrene",null,"6-8hrs","None set µg/m3",null,2.3999999999999998E-3,1.8E-3]
["Dibenzo(ai)pyrene",null,"6-8hrs","None set µg/m3",null,2.3999999999999998E-3,1.8E-3]
["Dibenzo(ah)anthracene",null,"6-8hrs","None set µg/m3",null,2.3999999999999998E-3,1.8E-3]
["Fluoranthene",null,"6-8hrs","None set µg/m3",null,3.7600000000000001E-2,2.86E-2]
["Indeno(123-cd) pyrene",null,"6-8hrs","None set µg/m3",null,2.3999999999999998E-3,1.8E-3]
["Naphthalene",null,"6-8hrs","None set µg/m3",null,0.33579999999999999,0.23380000000000001]
["Comments :"]

{"sheet":"Air (CEMS)","index":14,"n_rows":28,"n_cols":16,"rows_kept":28,"cut":false,"hidden":false,"merged":[[14,13,15,13],[14,14,15,14],[14,15,15,15],[12,13,13,15],[26,0,26,12],[13,0,14,0],[28,0,28,12],[5,0,6,12],[7,0,8,12],[10,0,10,12],[11,0,12,0],[11,2,12,2],[11,1,12,1],[11,3,11,4],[11,5,11,6],[11,7,11,8],[11,9,11,10],[11,11,11,12]]}
[{"$f":"+'Cover Page'!$B$29","v":"Annual Performance Report 2023"},null,null,null,null,null,null,null,{"$f":"+'Cover Page'!$B$33","v":"SELCHP"}]
[]
["Emissions to Air (continously monitored)"]
[null,null,null,null,null,null,null,null,null,null,null,null,null,"Notes:"]
["Summary of monitoring undertaken, standards used and compliance",null,null,null,null,null,null,null,null,null,null,null,null,"Template may require adjustment for any bespoke monitoring requirements of permit"]
["Three MCERT cretified CEMS are installed at the base of the Chimeney. Two duty, one for each combustion line and a third standby which may be selected to either line. Extractive sampling heated lines smple the flues gases. Instuments; MIR-FT, FID, in flue electrified probe and O2 probe.    ",null,null,null,null,null,null,null,null,null,null,null,null,"Please check that all default ELV values match those for your plant and edit if necessary!"]
[null,null,null,null,null,null,null,null,null,null,null,null,null,"Report to 1 decimal place"]
[]
[]
[]
["Results of emissions to air that are continuously monitored (maximum and average values for each line) - oxygen reference 11%"]
["Substance","Reference Period","Emission Limit Value**","A1",null,"A2",null,"A3",null,"A4",null,"A5"]
[null,null,null,"Max.","Avg.","Max.","Avg.","Max.","Avg.","Max.","Avg.","Max.","Avg.","** Denotes limits that were in force until 2 December 2023; from 3 December 2023 the following new limits applied (those not listed remained unchanged):"]
["Oxides of nitrogen","Daily mean","200 mg/m3 ",{"$f":"NOx!O19","v":195.39},{"$f":"NOx!N19","v":171.20500000000001},{"$f":"NOx!O34","v":197.19},{"$f":"NOx!N34","v":174.27583333333334}]
[null,"½ hourly mean","400 mg/m3 ",{"$f":"NOx!M19","v":325.92},{"$f":"NOx!L19","v":171.0633333333333},{"$f":"NOx!M34","v":299.76},{"$f":"NOx!L34","v":174.29416666666665},null,null,null,null,null,null,"Substance","Reference Period","Emission Limit Value"]
["Particulates","Daily mean","10 mg/m3",{"$f":"Particulates!O19","v":3.97},{"$f":"Particulates!N19","v":1.7633333333333334},{"$f":"Particulates!O34","v":3.8},{"$f":"Particulates!N34","v":1.51}]
[null,"½ hourly mean","30 mg/m3 ",{"$f":"Particulates!M19","v":21.17},{"$f":"Particulates!L19","v":1.7574999999999996},{"$f":"Particulates!M34","v":16.43},{"$f":"Particulates!L34","v":1.4883333333333333},null,null,null,null,null,null,"Oxides of nitrogen","Daily mean","180 mg/m3 "]
["Total Organic Carbon ","Daily mean","10 mg/m3 ",{"$f":"TOC!O19","v":2.14},{"$f":"TOC!N19","v":0.66999999999999993},{"$f":"TOC!O34","v":1.84},{"$f":"TOC!N34","v":0.55750000000000011},null,null,null,null,null,null,"Particulates","Daily mean","5 mg/m3 "]
[null,"½ hourly mean","20 mg/m3 ",{"$f":"TOC!M19","v":15.99},{"$f":"TOC!L19","v":0.6775000000000001},{"$f":"TOC!M34","v":14.18},{"$f":"TOC!L34","v":0.58333333333333337},null,null,null,null,null,null,"Hydrogen chloride","Daily mean","8 mg/m3 "]
["Hydrogen chloride ","Daily mean","10 mg/m3 ",{"$f":"HCl!O19","v":8.39},{"$f":"HCl!N19","v":5.8166666666666664},{"$f":"HCl!O34","v":8.68},{"$f":"HCl!N34","v":5.9649999999999999},null,null,null,null,null,null,"Sulphur dioxide","Daily mean","40 mg/m3 "]
[null,"½ hourly mean","60 mg/m3 ",{"$f":"HCl!M19","v":48.8},{"$f":"HCl!L19","v":5.8058333333333332},{"$f":"HCl!M34","v":31.63},{"$f":"HCl!L34","v":5.9483333333333333},null,null,null,null,null,null,"Ammonia","Daily mean","15 mg/m3 "]
["Sulphur dioxide","Daily mean","50 mg/m3 ",{"$f":"'SO2'!O19","v":24.32},{"$f":"'SO2'!N19","v":15.530833333333334},{"$f":"'SO2'!O34","v":24.87},{"$f":"'SO2'!N34","v":15.094999999999999}]
[null,"½ hourly mean","200 mg/m3 ",{"$f":"'SO2'!M19","v":132.55000000000001},{"$f":"'SO2'!L19","v":15.575833333333335},{"$f":"'SO2'!M34","v":103.71},{"$f":"'SO2'!L34","v":15.171666666666667}]
["Carbon monoxide ","Daily mean","50 mg/m3 ",{"$f":"'CO 95% 10 min'!Q22","v":17.22},{"$f":"'CO 95% 10 min'!P22","v":6.2075000000000005},{"$f":"'CO 95% 10 min'!Q37","v":10.6},{"$f":"'CO 95% 10 min'!P37","v":5.2191666666666672}]
[null,"95%ile 10-min avg *","150 mg/m3 *",{"$f":"MAX('CO 95% 10 min'!M10:M21)","v":89.01},{"$f":"'CO 95% 10 min'!M22","v":38.686666666666667},{"$f":"MAX('CO 95% 10 min'!M25:M36)","v":24.61},{"$f":"'CO 95% 10 min'!M37","v":16.102499999999996}]
[" Ammonia","Daily mean","No limit set until 03/12/23",{"$f":"'NH3'!O19","v":9.17},{"$f":"'NH3'!N19","v":2.4975000000000001},{"$f":"'NH3'!O34","v":9.35},{"$f":"'NH3'!N34","v":4.5866666666666669}]
["** = delete as appropriate, depending on whether your plant has half-horly or 10-min CO ELVs\n"]
["Comments :"]

{"sheet":"HCl","index":15,"n_rows":79,"n_cols":17,"rows_kept":79,"cut":false,"hidden":false,"merged":[[12,16,15,18],[51,9,62,9],[65,9,77,9],[4,9,4,14],[4,1,4,3],[4,4,4,6],[48,0,51,6],[47,0,47,6],[6,9,18,9],[21,9,33,9],[36,9,48,9],[3,16,7,18],[9,16,11,18],[18,4,18,6]]}
[{"$f":"+'Cover Page'!$B$29","v":"Annual Performance Report 2023"},null,null,null,{"$f":"+'Cover Page'!$B$33","v":"SELCHP"}]
[]
["Monitoring of Hydrogen Chloride emissions",null,null,"Whole Installation",null,null,"See  Notes in Cell Q3",null,null,{"$f":"+A3","v":"Monitoring of Hydrogen Chloride emissions"},null,null,null,"Per Combustion Line",null,null,"Notes:"]
[null,null,null,null,null,null,null,null,null,null,null,null,null,null,null,null,"User to add logic to complete Whole installation, Table A5:G18. From the data in Per Combustion Line, Table J6:O79, subject to No. of lines installed"]
["mg/Nm3","1/2 Hourly Reference Periods",null,null,"Daily Reference Periods"]
[{"$f":"+'Cover Page'!C39","v":2023},"1/2 hourly HCl ELV","Monthly 1/2 hourly mean","Highest 1/2 hourly maximum","Daily HCl ELV*","Monthly daily mean","Highest daily maximum",null,null,{"$f":"+A6","v":2023},"mg/Nm3","Monthly 1/2 hourly mean","Monthly 1/2 hourly maximum","Monthly daily mean","Monthly daily maximum"]
["Jan",60,5.89,26,10,5.94,8.0500000000000007,null,null,"A1","Jan",6.39,26,6.44,8.0500000000000007]
["Feb",60,6.88,19.79,10,6.88,8.68,null,null,null,"Feb",6.85,19.79,6.85,8.34]
["Mar",60,6.67,22.69,10,6.7,8.1999999999999993,null,null,null,"Mar",6.61,17.350000000000001,6.65,7.86,null,"Whole Installation table A5:G18:"]
["Apr",60,6.37,16.27,10,6.37,7.9,null,null,null,"Apr",6.24,13.92,6.26,7.43,null,"Mean: for 1/2 hourly and daily periods calculate mean of values across all operational combustion lines for the month"]
["May",60,6.74,30.93,10,6.73,8.2200000000000006,null,null,null,"May",6.52,21.5,6.52,7.74]
["Jun",60,6.7,48.8,10,6.74,8.39,null,null,null,"Jun",6.61,48.8,6.68,8.39]
["Jul",60,6.47,34.86,10,6.46,8.2799999999999994,null,null,null,"Jul",6.44,34.86,6.44,8.2799999999999994,null,"Maximum: for 1/2 hourly and daily periods use the highest value across all operational combustion lines for the month"]
["Aug",60,5.48,19.54,10,5.42,7.08,null,null,null,"Aug",5.46,19.54,5.45,5.94]
["Sep",60,5.19,11.38,10,5.2,5.93,null,null,null,"Sep",5.04,9.61,5.01,5.62]
["Oct",60,4.5199999999999996,22.67,10,4.55,6.09,null,null,null,"Oct",4.32,13.53,4.32,5.75]
["Nov",60,4.76,17.510000000000002,10,4.72,6.09,null,null,null,"Nov",4.47,17.32,4.47,6.07]
["Dec",60,4.97,17.190000000000001,10,4.97,6.21,null,null,null,"Dec",4.72,17.190000000000001,4.71,6.01]
[null,null,null,null,"* ELV reduced to 8 mg/Nm3 on 3 December 2023",null,null,null,null,null,"Annual",{"$f":"AVERAGE(L7:L18)","v":5.8058333333333332},{"$f":"MAX(M7:M18)","v":48.8},{"$f":"AVERAGE(N7:N18)","v":5.8166666666666664},{"$f":"MAX(O7:O18)","v":8.39}]
[]
[null,null,null,null,null,null,null,null,null,{"$f":"+A6","v":2023},"mg/Nm3","Monthly 1/2 hourly mean","Monthly 1/2 hourly maximum","Monthly daily mean","Monthly daily maximum"]
[null,null,null,null,null,null,null,null,null,"A2","Jan",4.8600000000000003,19.28,4.8499999999999996,6.19]
[null,null,null,null,null,null,null,null,null,null,"Feb",6.9,19.48,6.9,8.68]
[null,null,null,null,null,null,null,null,null,null,"Mar",6.73,22.69,6.73,8.1999999999999993]
[null,null,null,null,null,null,null,null,null,null,"Apr",6.51,16.27,6.5,7.9]
[null,null,null,null,null,null,null,null,null,null,"May",6.98,30.93,6.95,8.2200000000000006]
[null,null,null,null,null,null,null,null,null,null,"Jun",6.79,31.63,6.79,8.0500000000000007]
[null,null,null,null,null,null,null,null,null,null,"Jul",6.49,28.31,6.49,7.43]
[null,null,null,null,null,null,null,null,null,null,"Aug",5.5,15.52,5.39,7.08]
[null,null,null,null,null,null,null,null,null,null,"Sep",5.61,11.38,5.93,5.93]
[null,null,null,null,null,null,null,null,null,null,"Oct",4.72,22.67,4.79,6.09]
[null,null,null,null,null,null,null,null,null,null,"Nov",5.07,17.510000000000002,5.01,6.09]
[null,null,null,null,null,null,null,null,null,null,"Dec",5.22,11.67,5.25,6.21]
[null,null,null,null,null,null,null,null,null,null,"Annual",{"$f":"AVERAGE(L22:L33)","v":5.9483333333333333},{"$f":"MAX(M22:M33)","v":31.63},{"$f":"AVERAGE(N22:N33)","v":5.9649999999999999},{"$f":"MAX(O22:O33)","v":8.68}]
[]
[null,null,null,null,null,null,null,null,null,{"$f":"+A6","v":2023},"mg/Nm3","Monthly 1/2 hourly mean","Monthly 1/2 hourly maximum","Monthly daily mean","Monthly daily maximum"]
[null,null,null,null,null,null,null,null,null,"A3","Jan"]
[null,null,null,null,null,null,null,null,null,null,"Feb"]
[null,null,null,null,null,null,null,null,null,null,"Mar"]
[null,null,null,null,null,null,null,null,null,null,"Apr"]
[null,null,null,null,null,null,null,null,null,null,"May"]
[null,null,null,null,null,null,null,null,null,null,"Jun"]
[null,null,null,null,null,null,null,null,null,null,"Jul"]
[null,null,null,null,null,null,null,null,null,null,"Aug"]
[null,null,null,null,null,null,null,null,null,null,"Sep"]
[null,null,null,null,null,null,null,null,null,null,"Oct"]
[null,null,null,null,null,null,null,null,null,null,"Nov"]
["Comments :",null,null,null,null,null,null,null,null,null,"Dec"]
[null,null,null,null,null,null,null,null,null,null,"Annual",{"$f":"AVERAGE(L37:L48)","v":{"$error":"#DIV/0!"}},{"$f":"MAX(M37:M48)","v":0},{"$f":"AVERAGE(N37:N48)","v":{"$error":"#DIV/0!"}},{"$f":"MAX(O37:O48)","v":0}]
[]
[null,null,null,null,null,null,null,null,null,{"$f":"+A6","v":2023},"mg/Nm3","Monthly 1/2 hourly mean","Monthly 1/2 hourly maximum","Monthly daily mean","Monthly daily maximum"]
[null,null,null,null,null,null,null,null,null,"A4","Jan"]
[null,null,null,null,null,null,null,null,null,null,"Feb"]
[null,null,null,null,null,null,null,null,null,null,"Mar"]
[null,null,null,null,null,null,null,null,null,null,"Apr"]
[null,null,null,null,null,null,null,null,null,null,"May"]
[null,null,null,null,null,null,null,null,null,null,"Jun"]
[null,null,null,null,null,null,null,null,null,null,"Jul"]
[null,null,null,null,null,null,null,null,null,null,"Aug"]
[null,null,null,null,null,null,null,null,null,null,"Sep"]
[null,null,null,null,null,null,null,null,null,null,"Oct"]
[null,null,null,null,null,null,null,null,null,null,"Nov"]
[null,null,null,null,null,null,null,null,null,null,"Dec"]
[null,null,null,null,null,null,null,null,null,null,"Annual",{"$f":"AVERAGE(L52:L63)","v":{"$error":"#DIV/0!"}},{"$f":"MAX(M52:M63)","v":0},{"$f":"AVERAGE(N52:N63)","v":{"$error":"#DIV/0!"}},{"$f":"MAX(O52:O63)","v":0}]
[null,null,null,null,null,null,null,null,null,{"$f":"+A6","v":2023}]
[null,null,null,null,null,null,null,null,null,"A5","mg/Nm3","Monthly 1/2 hourly mean","Monthly 1/2 hourly maximum","Monthly daily mean","Monthly daily maximum"]
[null,null,null,null,null,null,null,null,null,null,"Jan"]
[null,null,null,null,null,null,null,null,null,null,"Feb"]
[null,null,null,null,null,null,null,null,null,null,"Mar"]
[null,null,null,null,null,null,null,null,null,null,"Apr"]
[null,null,null,null,null,null,null,null,null,null,"May"]
[null,null,null,null,null,null,null,null,null,null,"Jun"]
[null,null,null,null,null,null,null,null,null,null,"Jul"]
[null,null,null,null,null,null,null,null,null,null,"Aug"]
[null,null,null,null,null,null,null,null,null,null,"Sep"]
[null,null,null,null,null,null,null,null,null,null,"Oct"]
[null,null,null,null,null,null,null,null,null,null,"Nov"]
[null,null,null,null,null,null,null,null,null,null,"Dec"]
[null,null,null,null,null,null,null,null,null,null,"Annual",{"$f":"AVERAGE(L67:L78)","v":{"$error":"#DIV/0!"}},{"$f":"MAX(M67:M78)","v":0},{"$f":"AVERAGE(N67:N78)","v":{"$error":"#DIV/0!"}},{"$f":"MAX(O67:O78)","v":0}]

{"sheet":"SO2","index":16,"n_rows":79,"n_cols":17,"rows_kept":79,"cut":false,"hidden":false,"merged":[[3,16,7,18],[9,16,11,18],[12,16,15,18],[65,9,77,9],[4,1,4,3],[4,4,4,6],[4,9,4,14],[6,9,18,9],[21,9,33,9],[36,9,48,9],[47,0,47,6],[48,0,51,6],[51,9,62,9],[18,4,18,6]]}
[{"$f":"+'Cover Page'!$B$29","v":"Annual Performance Report 2023"},null,null,null,{"$f":"+'Cover Page'!$B$33","v":"SELCHP"}]
[]
["Monitoring of Sulphur dioxide emissions",null,null,"Whole Installation",null,null,"See  Notes in Cell Q3",null,null,{"$f":"+A3","v":"Monitoring of Sulphur dioxide emissions"},null,null,null,"Per Combustion Line",null,null,"Notes:"]
[null,null,null,null,null,null,null,null,null,null,null,null,null,null,null,null,"User to add logic to complete Whole installation, Table A5:G18. From the data in Per Combustion Line, Table J6:O79, subject to No. of lines installed"]
["mg/Nm3","1/2 Hourly Reference Periods",null,null,"Daily Reference Periods"]
[{"$f":"+'Cover Page'!C39","v":2023},"1/2 hourly SO2 ELV","Monthly 1/2 hourly mean","Highest 1/2 hourly maximum","Daily SO2 ELV*","Monthly daily mean","Highest daily maximum",null,null,{"$f":"+A6","v":2023},"mg/Nm3","Monthly 1/2 hourly mean","Monthly 1/2 hourly maximum","Monthly daily mean","Monthly daily maximum"]
["Jan",200,14.1,65.400000000000006,50,14.09,24.87,null,null,"A1","Jan",13.16,59.24,13.22,20.22]
["Feb",200,15.53,132.55000000000001,50,15.54,24.06,null,null,null,"Feb",15.75,132.55000000000001,15.76,24.06]
["Mar",200,15.33,57.02,50,15.33,19.91,null,null,null,"Mar",15.51,57.02,15.5,19.91,null,"Whole Installation table A5:G18:"]
["Apr",200,15.69,58.78,50,15.37,23.68,null,null,null,"Apr",13.94,45.92,13.73,18.47,null,"Mean: for 1/2 hourly and daily periods calculate mean of values across all operational combustion lines for the month"]
["May",200,18.05,68.37,50,17.95,22.92,null,null,null,"May",17.350000000000001,62.43,17.350000000000001,22.01]
["Jun",200,17.649999999999999,71.040000000000006,50,17.5,23.27,null,null,null,"Jun",17.37,71.040000000000006,17.32,23.27]
["Jul",200,14.54,127.12,50,14.54,23.41,null,null,null,"Jul",13.71,127.12,13.7,20.47,null,"Maximum: for 1/2 hourly and daily periods use the highest value across all operational combustion lines for the month"]
["Aug",200,12.07,40.450000000000003,50,11.59,20.04,null,null,null,"Aug",11.42,40.450000000000003,11.18,20.04]
["Sep",200,16.88,38.75,50,17.07,18.39,null,null,null,"Sep",16.760000000000002,28.51,16.739999999999998,17.52]
["Oct",200,16.57,86.41,50,16.64,24.32,null,null,null,"Oct",19.55,86.41,19.690000000000001,24.32]
["Nov",200,14.47,62.27,50,14.44,22.24,null,null,null,"Nov",17.03,58.05,17.03,22.24]
["Dec",200,12.99,49.9,50,12.84,20.39,null,null,null,"Dec",15.36,49.9,15.15,20.39]
[null,null,null,null,"* ELV reduced to 40 mg/Nm3 on 3 December 2023",null,null,null,null,null,"Annual",{"$f":"AVERAGE(L7:L18)","v":15.575833333333335},{"$f":"MAX(M7:M18)","v":132.55000000000001},{"$f":"AVERAGE(N7:N18)","v":15.530833333333334},{"$f":"MAX(O7:O18)","v":24.32}]
[]
[null,null,null,null,null,null,null,null,null,{"$f":"+A6","v":2023},"mg/Nm3","Monthly 1/2 hourly mean","Monthly 1/2 hourly maximum","Monthly daily mean","Monthly daily maximum"]
[null,null,null,null,null,null,null,null,null,"A2","Jan",16.079999999999998,65.400000000000006,15.99,24.87]
[null,null,null,null,null,null,null,null,null,null,"Feb",15.32,103.71,15.32,20.09]
[null,null,null,null,null,null,null,null,null,null,"Mar",15.17,43.04,15.18,17.95]
[null,null,null,null,null,null,null,null,null,null,"Apr",17.66,58.78,17.23,23.68]
[null,null,null,null,null,null,null,null,null,null,"May",18.8,68.37,18.63,22.92]
[null,null,null,null,null,null,null,null,null,null,"Jun",17.920000000000002,60.49,17.66,22.04]
[null,null,null,null,null,null,null,null,null,null,"Jul",15.37,60.78,15.37,23.41]
[null,null,null,null,null,null,null,null,null,null,"Aug",12.7,37.04,12,14.65]
[null,null,null,null,null,null,null,null,null,null,"Sep",17.239999999999998,38.75,18.39,18.39]
[null,null,null,null,null,null,null,null,null,null,"Oct",13.45,65.739999999999995,13.47,19.14]
[null,null,null,null,null,null,null,null,null,null,"Nov",11.76,62.27,11.46,15.16]
[null,null,null,null,null,null,null,null,null,null,"Dec",10.59,31.59,10.44,14.78]
[null,null,null,null,null,null,null,null,null,null,"Annual",{"$f":"AVERAGE(L22:L33)","v":15.171666666666667},{"$f":"MAX(M22:M33)","v":103.71},{"$f":"AVERAGE(N22:N33)","v":15.094999999999999},{"$f":"MAX(O22:O33)","v":24.87}]
[]
[null,null,null,null,null,null,null,null,null,{"$f":"+A6","v":2023},"mg/Nm3","Monthly 1/2 hourly mean","Monthly 1/2 hourly maximum","Monthly daily mean","Monthly daily maximum"]
[null,null,null,null,null,null,null,null,null,"A3","Jan"]
[null,null,null,null,null,null,null,null,null,null,"Feb"]
[null,null,null,null,null,null,null,null,null,null,"Mar"]
[null,null,null,null,null,null,null,null,null,null,"Apr"]
[null,null,null,null,null,null,null,null,null,null,"May"]
[null,null,null,null,null,null,null,null,null,null,"Jun"]
[null,null,null,null,null,null,null,null,null,null,"Jul"]
[null,null,null,null,null,null,null,null,null,null,"Aug"]
[null,null,null,null,null,null,null,null,null,null,"Sep"]
[null,null,null,null,null,null,null,null,null,null,"Oct"]
[null,null,null,null,null,null,null,null,null,null,"Nov"]
["Comments :",null,null,null,null,null,null,null,null,null,"Dec"]
[null,null,null,null,null,null,null,null,null,null,"Annual",{"$f":"AVERAGE(L37:L48)","v":{"$error":"#DIV/0!"}},{"$f":"MAX(M37:M48)","v":0},{"$f":"AVERAGE(N37:N48)","v":{"$error":"#DIV/0!"}},{"$f":"MAX(O37:O48)","v":0}]
[]
[null,null,null,null,null,null,null,null,null,{"$f":"+A6","v":2023},"mg/Nm3","Monthly 1/2 hourly mean","Monthly 1/2 hourly maximum","Monthly daily mean","Monthly daily maximum"]
[null,null,null,null,null,null,null,null,null,"A4","Jan"]
[null,null,null,null,null,null,null,null,null,null,"Feb"]
[null,null,null,null,null,null,null,null,null,null,"Mar"]
[null,null,null,null,null,null,null,null,null,null,"Apr"]
[null,null,null,null,null,null,null,null,null,null,"May"]
[null,null,null,null,null,null,null,null,null,null,"Jun"]
[null,null,null,null,null,null,null,null,null,null,"Jul"]
[null,null,null,null,null,null,null,null,null,null,"Aug"]
[null,null,null,null,null,null,null,null,null,null,"Sep"]
[null,null,null,null,null,null,null,null,null,null,"Oct"]
[null,null,null,null,null,null,null,null,null,null,"Nov"]
[null,null,null,null,null,null,null,null,null,null,"Dec"]
[null,null,null,null,null,null,null,null,null,null,"Annual",{"$f":"AVERAGE(L52:L63)","v":{"$error":"#DIV/0!"}},{"$f":"MAX(M52:M63)","v":0},{"$f":"AVERAGE(N52:N63)","v":{"$error":"#DIV/0!"}},{"$f":"MAX(O52:O63)","v":0}]
[null,null,null,null,null,null,null,null,null,{"$f":"+A6","v":2023}]
[null,null,null,null,null,null,null,null,null,"A5","mg/Nm3","Monthly 1/2 hourly mean","Monthly 1/2 hourly maximum","Monthly daily mean","Monthly daily maximum"]
[null,null,null,null,null,null,null,null,null,null,"Jan"]
[null,null,null,null,null,null,null,null,null,null,"Feb"]
[null,null,null,null,null,null,null,null,null,null,"Mar"]
[null,null,null,null,null,null,null,null,null,null,"Apr"]
[null,null,null,null,null,null,null,null,null,null,"May"]
[null,null,null,null,null,null,null,null,null,null,"Jun"]
[null,null,null,null,null,null,null,null,null,null,"Jul"]
[null,null,null,null,null,null,null,null,null,null,"Aug"]
[null,null,null,null,null,null,null,null,null,null,"Sep"]
[null,null,null,null,null,null,null,null,null,null,"Oct"]
[null,null,null,null,null,null,null,null,null,null,"Nov"]
[null,null,null,null,null,null,null,null,null,null,"Dec"]
[null,null,null,null,null,null,null,null,null,null,"Annual",{"$f":"AVERAGE(L67:L78)","v":{"$error":"#DIV/0!"}},{"$f":"MAX(M67:M78)","v":0},{"$f":"AVERAGE(N67:N78)","v":{"$error":"#DIV/0!"}},{"$f":"MAX(O67:O78)","v":0}]

{"sheet":"NOx","index":17,"n_rows":79,"n_cols":17,"rows_kept":79,"cut":false,"hidden":false,"merged":[[3,16,7,18],[9,16,11,18],[12,16,15,18],[65,9,77,9],[4,1,4,3],[4,4,4,6],[4,9,4,14],[6,9,18,9],[21,9,33,9],[36,9,48,9],[47,0,47,6],[48,0,51,6],[51,9,62,9],[18,4,18,6]]}
[{"$f":"+'Cover Page'!$B$29","v":"Annual Performance Report 2023"},null,null,null,{"$f":"+'Cover Page'!$B$33","v":"SELCHP"}]
[]
["Monitoring of Oxides of Nitrogen emissions",null,null,"Whole Installation",null,null,"See  Notes in Cell Q3",null,null,{"$f":"+A3","v":"Monitoring of Oxides of Nitrogen emissions"},null,null,null,"Per Combustion Line",null,null,"Notes:"]
[null,null,null,null,null,null,null,null,null,null,null,null,null,null,null,null,"User to add logic to complete Whole installation, Table A5:G18. From the data in Per Combustion Line, Table J6:O79, subject to No. of lines installed"]
["mg/Nm3","1/2 Hourly Reference Periods",null,null,"Daily Reference Periods"]
[{"$f":"+'Cover Page'!C39","v":2023},"1/2 hourly NOx ELV","Monthly 1/2 hourly mean","Highest 1/2 hourly maximum","Daily NOx ELV*","Monthly daily mean","Highest daily maximum",null,null,{"$f":"+A6","v":2023},"mg/Nm3","Monthly 1/2 hourly mean","Monthly 1/2 hourly maximum","Monthly daily mean","Monthly daily maximum"]
["Jan",400,175.3,279.83,200,175.24,188.41,null,null,"A1","Jan",173,279.83,173.04,188.41]
["Feb",400,182.52,259.17,200,182.52,192.58,null,null,null,"Feb",179.77,229.6,179.77,188.88]
["Mar",400,185.32,278.19,200,185.23,197.19,null,null,null,"Mar",184.15,255.09,183.87,195.39,null,"Whole Installation table A5:G18:"]
["Apr",400,180.84,253.04,200,181.05,196.69,null,null,null,"Apr",176.51,241.8,176.78,190.2,null,"Mean: for 1/2 hourly and daily periods calculate mean of values across all operational combustion lines for the month"]
["May",400,177.09,271.8,200,177.12,194.94,null,null,null,"May",173.7,242.14,173.69,187.69]
["Jun",400,171.18,256.29000000000002,200,171.66,179.79,null,null,null,"Jun",168.2,233.72,168.96,179.79]
["Jul",400,166.1,237.23,200,166.11,179.53,null,null,null,"Jul",162.21,221.98,162.24,179.53,null,"Maximum: for 1/2 hourly and daily periods use the highest value across all operational combustion lines for the month"]
["Aug",400,165.94,246.87,200,165.99,174.07,null,null,null,"Aug",166.17,206.07,166.99,173.2]
["Sep",400,164.46,194.17,200,164.19,170.94,null,null,null,"Sep",163.80000000000001,190.18,163.76,170.94]
["Oct",400,165.68,325.92,200,165.8,181.69,null,null,null,"Oct",165.76,325.92,166.01,181.69]
["Nov",400,168.08,244.44,200,168.29,177.95,null,null,null,"Nov",171.3,239.96,171.3,177.95]
["Dec",400,167.57,299.76,200,167.71,175.61,null,null,null,"Dec",168.19,242.2,168.05,175.61]
[null,null,null,null,"* ELV reduced to 180 mg/Nm3 on 3 December 2023",null,null,null,null,null,"Annual",{"$f":"AVERAGE(L7:L18)","v":171.0633333333333},{"$f":"MAX(M7:M18)","v":325.92},{"$f":"AVERAGE(N7:N18)","v":171.20500000000001},{"$f":"MAX(O7:O18)","v":195.39}]
[]
[null,null,null,null,null,null,null,null,null,{"$f":"+A6","v":2023},"mg/Nm3","Monthly 1/2 hourly mean","Monthly 1/2 hourly maximum","Monthly daily mean","Monthly daily maximum"]
[null,null,null,null,null,null,null,null,null,"A2","Jan",180.15,274.3,180.04,187.4]
[null,null,null,null,null,null,null,null,null,null,"Feb",185.27,259.17,185.27,192.58]
[null,null,null,null,null,null,null,null,null,null,"Mar",186.38,278.19,186.37,197.19]
[null,null,null,null,null,null,null,null,null,null,"Apr",185.72,253.04,185.91,196.69]
[null,null,null,null,null,null,null,null,null,null,"May",180.69,271.8,180.92,194.94]
[null,null,null,null,null,null,null,null,null,null,"Jun",174.05,256.29000000000002,174.16,179.57]
[null,null,null,null,null,null,null,null,null,null,"Jul",169.98,237.23,169.98,179.22]
[null,null,null,null,null,null,null,null,null,null,"Aug",165.72,246.87,164.98,174.07]
[null,null,null,null,null,null,null,null,null,null,"Sep",166.37,194.17,165.93,165.93]
[null,null,null,null,null,null,null,null,null,null,"Oct",165.6,263.17,165.58,180.33]
[null,null,null,null,null,null,null,null,null,null,"Nov",164.65,244.44,164.81,175.01]
[null,null,null,null,null,null,null,null,null,null,"Dec",166.95,299.76,167.36,174.68]
[null,null,null,null,null,null,null,null,null,null,"Annual",{"$f":"AVERAGE(L22:L33)","v":174.29416666666665},{"$f":"MAX(M22:M33)","v":299.76},{"$f":"AVERAGE(N22:N33)","v":174.27583333333334},{"$f":"MAX(O22:O33)","v":197.19}]
[]
[null,null,null,null,null,null,null,null,null,{"$f":"+A6","v":2023},"mg/Nm3","Monthly 1/2 hourly mean","Monthly 1/2 hourly maximum","Monthly daily mean","Monthly daily maximum"]
[null,null,null,null,null,null,null,null,null,"A3","Jan"]
[null,null,null,null,null,null,null,null,null,null,"Feb"]
[null,null,null,null,null,null,null,null,null,null,"Mar"]
[null,null,null,null,null,null,null,null,null,null,"Apr"]
[null,null,null,null,null,null,null,null,null,null,"May"]
[null,null,null,null,null,null,null,null,null,null,"Jun"]
[null,null,null,null,null,null,null,null,null,null,"Jul"]
[null,null,null,null,null,null,null,null,null,null,"Aug"]
[null,null,null,null,null,null,null,null,null,null,"Sep"]
[null,null,null,null,null,null,null,null,null,null,"Oct"]
[null,null,null,null,null,null,null,null,null,null,"Nov"]
["Comments :",null,null,null,null,null,null,null,null,null,"Dec"]
[null,null,null,null,null,null,null,null,null,null,"Annual",{"$f":"AVERAGE(L37:L48)","v":{"$error":"#DIV/0!"}},{"$f":"MAX(M37:M48)","v":0},{"$f":"AVERAGE(N37:N48)","v":{"$error":"#DIV/0!"}},{"$f":"MAX(O37:O48)","v":0}]
[]
[null,null,null,null,null,null,null,null,null,{"$f":"+A6","v":2023},"mg/Nm3","Monthly 1/2 hourly mean","Monthly 1/2 hourly maximum","Monthly daily mean","Monthly daily maximum"]
[null,null,null,null,null,null,null,null,null,"A4","Jan"]
[null,null,null,null,null,null,null,null,null,null,"Feb"]
[null,null,null,null,null,null,null,null,null,null,"Mar"]
[null,null,null,null,null,null,null,null,null,null,"Apr"]
[null,null,null,null,null,null,null,null,null,null,"May"]
[null,null,null,null,null,null,null,null,null,null,"Jun"]
[null,null,null,null,null,null,null,null,null,null,"Jul"]
[null,null,null,null,null,null,null,null,null,null,"Aug"]
[null,null,null,null,null,null,null,null,null,null,"Sep"]
[null,null,null,null,null,null,null,null,null,null,"Oct"]
[null,null,null,null,null,null,null,null,null,null,"Nov"]
[null,null,null,null,null,null,null,null,null,null,"Dec"]
[null,null,null,null,null,null,null,null,null,null,"Annual",{"$f":"AVERAGE(L52:L63)","v":{"$error":"#DIV/0!"}},{"$f":"MAX(M52:M63)","v":0},{"$f":"AVERAGE(N52:N63)","v":{"$error":"#DIV/0!"}},{"$f":"MAX(O52:O63)","v":0}]
[null,null,null,null,null,null,null,null,null,{"$f":"+A6","v":2023}]
[null,null,null,null,null,null,null,null,null,"A5","mg/Nm3","Monthly 1/2 hourly mean","Monthly 1/2 hourly maximum","Monthly daily mean","Monthly daily maximum"]
[null,null,null,null,null,null,null,null,null,null,"Jan"]
[null,null,null,null,null,null,null,null,null,null,"Feb"]
[null,null,null,null,null,null,null,null,null,null,"Mar"]
[null,null,null,null,null,null,null,null,null,null,"Apr"]
[null,null,null,null,null,null,null,null,null,null,"May"]
[null,null,null,null,null,null,null,null,null,null,"Jun"]
[null,null,null,null,null,null,null,null,null,null,"Jul"]
[null,null,null,null,null,null,null,null,null,null,"Aug"]
[null,null,null,null,null,null,null,null,null,null,"Sep"]
[null,null,null,null,null,null,null,null,null,null,"Oct"]
[null,null,null,null,null,null,null,null,null,null,"Nov"]
[null,null,null,null,null,null,null,null,null,null,"Dec"]
[null,null,null,null,null,null,null,null,null,null,"Annual",{"$f":"AVERAGE(L67:L78)","v":{"$error":"#DIV/0!"}},{"$f":"MAX(M67:M78)","v":0},{"$f":"AVERAGE(N67:N78)","v":{"$error":"#DIV/0!"}},{"$f":"MAX(O67:O78)","v":0}]

{"sheet":"TOC","index":18,"n_rows":79,"n_cols":17,"rows_kept":79,"cut":false,"hidden":false,"merged":[[3,16,7,18],[9,16,11,18],[12,16,15,18],[65,9,77,9],[4,1,4,3],[4,4,4,6],[4,9,4,14],[6,9,18,9],[21,9,33,9],[36,9,48,9],[47,0,47,6],[48,0,51,6],[51,9,62,9]]}
[{"$f":"+'Cover Page'!$B$29","v":"Annual Performance Report 2023"},null,null,null,{"$f":"+'Cover Page'!$B$33","v":"SELCHP"}]
[]
["Monitoring of Total organic carbon emissions",null,null,"Whole Installation",null,null,"See  Notes in Cell Q3",null,null,{"$f":"+A3","v":"Monitoring of Total organic carbon emissions"},null,null,null,"Per Combustion Line",null,null,"Notes:"]
[null,null,null,null,null,null,null,null,null,null,null,null,null,null,null,null,"User to add logic to complete Whole installation, Table A5:G18. From the data in Per Combustion Line, Table J6:O79, subject to No. of lines installed"]
["mg/Nm3","1/2 Hourly Reference Periods",null,null,"Daily Reference Periods"]
[{"$f":"+'Cover Page'!C39","v":2023},"1/2 hourly TOC ELV","Monthly 1/2 hourly mean","Highest 1/2 hourly maximum","Daily TOC ELV","Monthly daily mean","Highest daily maximum",null,null,{"$f":"+A6","v":2023},"mg/Nm3","Monthly 1/2 hourly mean","Monthly 1/2 hourly maximum","Monthly daily mean","Monthly daily maximum"]
["Jan",20,0.37,14.18,10,0.36,1.84,null,null,"A1","Jan",0.17,7.91,0.19,0.59]
["Feb",20,0.51,6.48,10,0.51,1.1399999999999999,null,null,null,"Feb",0.33,6.48,0.33,0.73]
["Mar",20,0.35,9.52,10,0.33,0.82,null,null,null,"Mar",0.18,9.52,0.14000000000000001,0.64,null,"Whole Installation table A5:G18:"]
["Apr",20,0.5,8.0399999999999991,10,0.45,1.1599999999999999,null,null,null,"Apr",0.34,5.99,0.31,0.77,null,"Mean: for 1/2 hourly and daily periods calculate mean of values across all operational combustion lines for the month"]
["May",20,0.46,8.89,10,0.45,0.73,null,null,null,"May",0.32,6.44,0.32,0.56000000000000005]
["Jun",20,0.66,7.99,10,0.66,1.65,null,null,null,"Jun",0.78,6.44,0.79,1.65]
["Jul",20,0.91,15.99,10,0.91,2.14,null,null,null,"Jul",1.3,15.99,1.3,2.14,null,"Maximum: for 1/2 hourly and daily periods use the highest value across all operational combustion lines for the month"]
["Aug",20,1.02,9.4700000000000006,10,0.97,1.54,null,null,null,"Aug",1.31,5.17,1.29,1.54]
["Sep",20,0.95,6,10,0.97,1.06,null,null,null,"Sep",1,6,1,1.06]
["Oct",20,0.77,11.73,10,0.74,1.62,null,null,null,"Oct",0.96,11.73,0.94,1.62]
["Nov",20,0.56000000000000005,7.42,10,0.54,0.9,null,null,null,"Nov",0.74,5.44,0.74,0.9]
["Dec",20,0.44,3.62,10,0.42,0.86,null,null,null,"Dec",0.7,3.62,0.69,0.86]
[null,null,null,null,null,null,null,null,null,null,"Annual",{"$f":"AVERAGE(L7:L18)","v":0.6775000000000001},{"$f":"MAX(M7:M18)","v":15.99},{"$f":"AVERAGE(N7:N18)","v":0.66999999999999993},{"$f":"MAX(O7:O18)","v":2.14}]
[]
[null,null,null,null,null,null,null,null,null,{"$f":"+A6","v":2023},"mg/Nm3","Monthly 1/2 hourly mean","Monthly 1/2 hourly maximum","Monthly daily mean","Monthly daily maximum"]
[null,null,null,null,null,null,null,null,null,"A2","Jan",0.78,14.18,0.74,1.84]
[null,null,null,null,null,null,null,null,null,null,"Feb",0.69,5.41,0.69,1.1399999999999999]
[null,null,null,null,null,null,null,null,null,null,"Mar",0.5,3.9,0.5,0.82]
[null,null,null,null,null,null,null,null,null,null,"Apr",0.67,8.0399999999999991,0.61,1.1599999999999999]
[null,null,null,null,null,null,null,null,null,null,"May",0.61,8.89,0.57999999999999996,0.73]
[null,null,null,null,null,null,null,null,null,null,"Jun",0.56000000000000005,7.99,0.54,0.84]
[null,null,null,null,null,null,null,null,null,null,"Jul",0.53,5.12,0.53,0.65]
[null,null,null,null,null,null,null,null,null,null,"Aug",0.74,9.4700000000000006,0.65,0.93]
[null,null,null,null,null,null,null,null,null,null,"Sep",0.81,1.92,0.86,0.86]
[null,null,null,null,null,null,null,null,null,null,"Oct",0.56999999999999995,8.6300000000000008,0.53,0.99]
[null,null,null,null,null,null,null,null,null,null,"Nov",0.37,7.42,0.31,0.53]
[null,null,null,null,null,null,null,null,null,null,"Dec",0.17,2.88,0.15,0.49]
[null,null,null,null,null,null,null,null,null,null,"Annual",{"$f":"AVERAGE(L22:L33)","v":0.58333333333333337},{"$f":"MAX(M22:M33)","v":14.18},{"$f":"AVERAGE(N22:N33)","v":0.55750000000000011},{"$f":"MAX(O22:O33)","v":1.84}]
[]
[null,null,null,null,null,null,null,null,null,{"$f":"+A6","v":2023},"mg/Nm3","Monthly 1/2 hourly mean","Monthly 1/2 hourly maximum","Monthly daily mean","Monthly daily maximum"]
[null,null,null,null,null,null,null,null,null,"A3","Jan"]
[null,null,null,null,null,null,null,null,null,null,"Feb"]
[null,null,null,null,null,null,null,null,null,null,"Mar"]
[null,null,null,null,null,null,null,null,null,null,"Apr"]
[null,null,null,null,null,null,null,null,null,null,"May"]
[null,null,null,null,null,null,null,null,null,null,"Jun"]
[null,null,null,null,null,null,null,null,null,null,"Jul"]
[null,null,null,null,null,null,null,null,null,null,"Aug"]
[null,null,null,null,null,null,null,null,null,null,"Sep"]
[null,null,null,null,null,null,null,null,null,null,"Oct"]
[null,null,null,null,null,null,null,null,null,null,"Nov"]
["Comments :",null,null,null,null,null,null,null,null,null,"Dec"]
[null,null,null,null,null,null,null,null,null,null,"Annual",{"$f":"AVERAGE(L37:L48)","v":{"$error":"#DIV/0!"}},{"$f":"MAX(M37:M48)","v":0},{"$f":"AVERAGE(N37:N48)","v":{"$error":"#DIV/0!"}},{"$f":"MAX(O37:O48)","v":0}]
[]
[null,null,null,null,null,null,null,null,null,{"$f":"+A6","v":2023},"mg/Nm3","Monthly 1/2 hourly mean","Monthly 1/2 hourly maximum","Monthly daily mean","Monthly daily maximum"]
[null,null,null,null,null,null,null,null,null,"A4","Jan"]
[null,null,null,null,null,null,null,null,null,null,"Feb"]
[null,null,null,null,null,null,null,null,null,null,"Mar"]
[null,null,null,null,null,null,null,null,null,null,"Apr"]
[null,null,null,null,null,null,null,null,null,null,"May"]
[null,null,null,null,null,null,null,null,null,null,"Jun"]
[null,null,null,null,null,null,null,null,null,null,"Jul"]
[null,null,null,null,null,null,null,null,null,null,"Aug"]
[null,null,null,null,null,null,null,null,null,null,"Sep"]
[null,null,null,null,null,null,null,null,null,null,"Oct"]
[null,null,null,null,null,null,null,null,null,null,"Nov"]
[null,null,null,null,null,null,null,null,null,null,"Dec"]
[null,null,null,null,null,null,null,null,null,null,"Annual",{"$f":"AVERAGE(L52:L63)","v":{"$error":"#DIV/0!"}},{"$f":"MAX(M52:M63)","v":0},{"$f":"AVERAGE(N52:N63)","v":{"$error":"#DIV/0!"}},{"$f":"MAX(O52:O63)","v":0}]
[null,null,null,null,null,null,null,null,null,{"$f":"+A6","v":2023}]
[null,null,null,null,null,null,null,null,null,"A5","mg/Nm3","Monthly 1/2 hourly mean","Monthly 1/2 hourly maximum","Monthly daily mean","Monthly daily maximum"]
[null,null,null,null,null,null,null,null,null,null,"Jan"]
[null,null,null,null,null,null,null,null,null,null,"Feb"]
[null,null,null,null,null,null,null,null,null,null,"Mar"]
[null,null,null,null,null,null,null,null,null,null,"Apr"]
[null,null,null,null,null,null,null,null,null,null,"May"]
[null,null,null,null,null,null,null,null,null,null,"Jun"]
[null,null,null,null,null,null,null,null,null,null,"Jul"]
[null,null,null,null,null,null,null,null,null,null,"Aug"]
[null,null,null,null,null,null,null,null,null,null,"Sep"]
[null,null,null,null,null,null,null,null,null,null,"Oct"]
[null,null,null,null,null,null,null,null,null,null,"Nov"]
[null,null,null,null,null,null,null,null,null,null,"Dec"]
[null,null,null,null,null,null,null,null,null,null,"Annual",{"$f":"AVERAGE(L67:L78)","v":{"$error":"#DIV/0!"}},{"$f":"MAX(M67:M78)","v":0},{"$f":"AVERAGE(N67:N78)","v":{"$error":"#DIV/0!"}},{"$f":"MAX(O67:O78)","v":0}]

{"sheet":"Particulates","index":19,"n_rows":79,"n_cols":17,"rows_kept":79,"cut":false,"hidden":false,"merged":[[3,16,7,18],[9,16,11,18],[12,16,15,18],[65,9,77,9],[4,1,4,3],[4,4,4,6],[4,9,4,14],[6,9,18,9],[21,9,33,9],[36,9,48,9],[47,0,47,6],[48,0,51,6],[51,9,62,9],[18,4,18,6]]}
[{"$f":"+'Cover Page'!$B$29","v":"Annual Performance Report 2023"},null,null,null,{"$f":"+'Cover Page'!$B$33","v":"SELCHP"}]
[]
["Monitoring of Particulate matter emissions",null,null,"Whole Installation",null,null,"See  Notes in Cell Q3",null,null,{"$f":"+A3","v":"Monitoring of Particulate matter emissions"},null,null,null,"Per Combustion Line",null,null,"Notes:"]
[null,null,null,null,null,null,null,null,null,null,null,null,null,null,null,null,"User to add logic to complete Whole installation, Table A5:G18. From the data in Per Combustion Line, Table J6:O79, subject to No. of lines installed"]
["mg/Nm3","1/2 Hourly Reference Periods",null,null,"Daily Reference Periods"]
[{"$f":"+'Cover Page'!C39","v":2023},"1/2 hourly PM ELV","Monthly 1/2 hourly mean","Highest 1/2 hourly maximum","Daily PM ELV*","Monthly daily mean","Highest daily maximum",null,null,{"$f":"+A6","v":2023},"mg/Nm3","Monthly 1/2 hourly mean","Monthly 1/2 hourly maximum","Monthly daily mean","Monthly daily maximum"]
["Jan",30,1.49,10.02,10,1.49,2.16,null,null,"A1","Jan",1.64,4.3899999999999997,1.66,2.16]
["Feb",30,1.62,7.42,10,1.62,3.55,null,null,null,"Feb",2.33,6.6,2.33,3.55]
["Mar",30,1.63,7.84,10,1.61,3.34,null,null,null,"Mar",2.25,7.84,2.27,3.34,null,"Whole Installation table A5:G18:"]
["Apr",30,1.47,7.64,10,1.49,3.07,null,null,null,"Apr",1.66,7.64,1.7,3.07,null,"Mean: for 1/2 hourly and daily periods calculate mean of values across all operational combustion lines for the month"]
["May",30,1.7,9.42,10,1.7,3.25,null,null,null,"May",2.06,9.42,2.06,3.25]
["Jun",30,1.73,5.95,10,1.73,2.84,null,null,null,"Jun",2.1,5.95,2.12,2.84]
["Jul",30,1.41,7.25,10,1.41,3.97,null,null,null,"Jul",1.51,6.2,1.51,3.97,null,"Maximum: for 1/2 hourly and daily periods use the highest value across all operational combustion lines for the month"]
["Aug",30,2.25,21.17,10,2.1,3.8,null,null,null,"Aug",2.06,21.17,1.88,3.76]
["Sep",30,2.86,7.13,10,2.97,3.21,null,null,null,"Sep",3.01,5.61,3,3.21]
["Oct",30,1.21,7.65,10,1.21,1.57,null,null,null,"Oct",1.06,5.21,1.06,1.27]
["Nov",30,0.82,6.91,10,0.79,2.93,null,null,null,"Nov",0.17,4.8600000000000003,0.17,2.93]
["Dec",30,1.5,6.22,10,1.58,2.29,null,null,null,"Dec",1.24,5.23,1.4,2.29]
[null,null,null,null,"* ELV reduced to 5 mg/Nm3 on 3 December 2023",null,null,null,null,null,"Annual",{"$f":"AVERAGE(L7:L18)","v":1.7574999999999996},{"$f":"MAX(M7:M18)","v":21.17},{"$f":"AVERAGE(N7:N18)","v":1.7633333333333334},{"$f":"MAX(O7:O18)","v":3.97}]
[]
[null,null,null,null,null,null,null,null,null,{"$f":"+A6","v":2023},"mg/Nm3","Monthly 1/2 hourly mean","Monthly 1/2 hourly maximum","Monthly daily mean","Monthly daily maximum"]
[null,null,null,null,null,null,null,null,null,"A2","Jan",1.1599999999999999,10.02,1.1200000000000001,1.58]
[null,null,null,null,null,null,null,null,null,null,"Feb",0.91,7.42,0.91,1.04]
[null,null,null,null,null,null,null,null,null,null,"Mar",1.06,4.92,1.06,1.18]
[null,null,null,null,null,null,null,null,null,null,"Apr",1.25,4.6100000000000003,1.25,1.48]
[null,null,null,null,null,null,null,null,null,null,"May",1.32,6.33,1.31,1.91]
[null,null,null,null,null,null,null,null,null,null,"Jun",1.37,4.66,1.37,2.04]
[null,null,null,null,null,null,null,null,null,null,"Jul",1.32,7.25,1.32,1.7]
[null,null,null,null,null,null,null,null,null,null,"Aug",2.4300000000000002,16.43,2.31,3.8]
[null,null,null,null,null,null,null,null,null,null,"Sep",2.42,7.13,2.84,2.84]
[null,null,null,null,null,null,null,null,null,null,"Oct",1.37,7.65,1.36,1.57]
[null,null,null,null,null,null,null,null,null,null,"Nov",1.5,6.91,1.51,1.87]
[null,null,null,null,null,null,null,null,null,null,"Dec",1.75,6.22,1.76,2.21]
[null,null,null,null,null,null,null,null,null,null,"Annual",{"$f":"AVERAGE(L22:L33)","v":1.4883333333333333},{"$f":"MAX(M22:M33)","v":16.43},{"$f":"AVERAGE(N22:N33)","v":1.51},{"$f":"MAX(O22:O33)","v":3.8}]
[]
[null,null,null,null,null,null,null,null,null,{"$f":"+A6","v":2023},"mg/Nm3","Monthly 1/2 hourly mean","Monthly 1/2 hourly maximum","Monthly daily mean","Monthly daily maximum"]
[null,null,null,null,null,null,null,null,null,"A3","Jan"]
[null,null,null,null,null,null,null,null,null,null,"Feb"]
[null,null,null,null,null,null,null,null,null,null,"Mar"]
[null,null,null,null,null,null,null,null,null,null,"Apr"]
[null,null,null,null,null,null,null,null,null,null,"May"]
[null,null,null,null,null,null,null,null,null,null,"Jun"]
[null,null,null,null,null,null,null,null,null,null,"Jul"]
[null,null,null,null,null,null,null,null,null,null,"Aug"]
[null,null,null,null,null,null,null,null,null,null,"Sep"]
[null,null,null,null,null,null,null,null,null,null,"Oct"]
[null,null,null,null,null,null,null,null,null,null,"Nov"]
["Comments :",null,null,null,null,null,null,null,null,null,"Dec"]
[null,null,null,null,null,null,null,null,null,null,"Annual",{"$f":"AVERAGE(L37:L48)","v":{"$error":"#DIV/0!"}},{"$f":"MAX(M37:M48)","v":0},{"$f":"AVERAGE(N37:N48)","v":{"$error":"#DIV/0!"}},{"$f":"MAX(O37:O48)","v":0}]
[]
[null,null,null,null,null,null,null,null,null,{"$f":"+A6","v":2023},"mg/Nm3","Monthly 1/2 hourly mean","Monthly 1/2 hourly maximum","Monthly daily mean","Monthly daily maximum"]
[null,null,null,null,null,null,null,null,null,"A4","Jan"]
[null,null,null,null,null,null,null,null,null,null,"Feb"]
[null,null,null,null,null,null,null,null,null,null,"Mar"]
[null,null,null,null,null,null,null,null,null,null,"Apr"]
[null,null,null,null,null,null,null,null,null,null,"May"]
[null,null,null,null,null,null,null,null,null,null,"Jun"]
[null,null,null,null,null,null,null,null,null,null,"Jul"]
[null,null,null,null,null,null,null,null,null,null,"Aug"]
[null,null,null,null,null,null,null,null,null,null,"Sep"]
[null,null,null,null,null,null,null,null,null,null,"Oct"]
[null,null,null,null,null,null,null,null,null,null,"Nov"]
[null,null,null,null,null,null,null,null,null,null,"Dec"]
[null,null,null,null,null,null,null,null,null,null,"Annual",{"$f":"AVERAGE(L52:L63)","v":{"$error":"#DIV/0!"}},{"$f":"MAX(M52:M63)","v":0},{"$f":"AVERAGE(N52:N63)","v":{"$error":"#DIV/0!"}},{"$f":"MAX(O52:O63)","v":0}]
[null,null,null,null,null,null,null,null,null,{"$f":"+A6","v":2023}]
[null,null,null,null,null,null,null,null,null,"A5","mg/Nm3","Monthly 1/2 hourly mean","Monthly 1/2 hourly maximum","Monthly daily mean","Monthly daily maximum"]
[null,null,null,null,null,null,null,null,null,null,"Jan"]
[null,null,null,null,null,null,null,null,null,null,"Feb"]
[null,null,null,null,null,null,null,null,null,null,"Mar"]
[null,null,null,null,null,null,null,null,null,null,"Apr"]
[null,null,null,null,null,null,null,null,null,null,"May"]
[null,null,null,null,null,null,null,null,null,null,"Jun"]
[null,null,null,null,null,null,null,null,null,null,"Jul"]
[null,null,null,null,null,null,null,null,null,null,"Aug"]
[null,null,null,null,null,null,null,null,null,null,"Sep"]
[null,null,null,null,null,null,null,null,null,null,"Oct"]
[null,null,null,null,null,null,null,null,null,null,"Nov"]
[null,null,null,null,null,null,null,null,null,null,"Dec"]
[null,null,null,null,null,null,null,null,null,null,"Annual",{"$f":"AVERAGE(L67:L78)","v":{"$error":"#DIV/0!"}},{"$f":"MAX(M67:M78)","v":0},{"$f":"AVERAGE(N67:N78)","v":{"$error":"#DIV/0!"}},{"$f":"MAX(O67:O78)","v":0}]

{"sheet":"CO 0.5 hourly","index":20,"n_rows":82,"n_cols":17,"rows_kept":82,"cut":false,"hidden":false,"merged":[[4,0,5,6],[6,16,10,18],[12,16,14,18],[15,16,18,18],[68,9,80,9],[7,1,7,3],[7,4,7,6],[7,9,7,14],[9,9,21,9],[24,9,36,9],[39,9,51,9],[50,0,50,6],[51,0,53,6],[54,9,65,9]]}
[{"$f":"+'Cover Page'!$B$29","v":"Annual Performance Report 2023"},null,null,null,{"$f":"+'Cover Page'!$B$33","v":"SELCHP"}]
[]
["Monitoring of Carbon Monoxide (half hourly)",null,null,"Whole Installation",null,null,"See  Notes in Cell Q3",null,null,{"$f":"+A3","v":"Monitoring of Carbon Monoxide (half hourly)"},null,null,null,"Per Combustion Line",null,null,"Notes:"]
[]
["Please complete this tab for your plant if you have 1/2 hourly CO ELVs; otherwise, leave it blank and complete the CO 95% 10 min tab"]
[]
[null,null,null,null,null,null,null,null,null,null,null,null,null,null,null,null,"User to add logic to complete Whole installation, Table A5:G18. From the data in Per Combustion Line, Table J6:O79, subject to No. of lines installed"]
["mg/Nm3","1/2 Hourly Reference Periods",null,null,"Daily Reference Periods"]
[{"$f":"+'Cover Page'!C39","v":2023},"1/2 hourly CO ELV","Monthly 1/2 hourly mean","Highest 1/2 hourly maximum","Daily CO ELV","Monthly daily mean","Highest daily maximum",null,null,{"$f":"+A9","v":2023},"mg/Nm3","Monthly 1/2 hourly mean","Monthly 1/2 hourly maximum","Monthly daily mean","Monthly daily maximum"]
["Jan",100,null,null,50,null,null,null,null,"A1","Jan"]
["Feb",{"$f":"+B10","v":100},null,null,{"$f":"+E10","v":50},null,null,null,null,null,"Feb"]
["Mar",{"$f":"+B11","v":100},null,null,{"$f":"+E11","v":50},null,null,null,null,null,"Mar",null,null,null,null,null,"Whole Installation table A5:G18:"]
["Apr",100,null,null,50,null,null,null,null,null,"Apr",null,null,null,null,null,"Mean: for 1/2 hourly and daily periods calculate mean of values across all operational combustion lines for the month"]
["May",100,null,null,50,null,null,null,null,null,"May"]
["Jun",100,null,null,50,null,null,null,null,null,"Jun"]
["Jul",100,null,null,50,null,null,null,null,null,"Jul",null,null,null,null,null,"Maximum: for 1/2 hourly and daily periods use the highest value across all operational combustion lines for the month"]
["Aug",100,null,null,50,null,null,null,null,null,"Aug"]
["Sep",100,null,null,50,null,null,null,null,null,"Sep"]
["Oct",100,null,null,50,null,null,null,null,null,"Oct"]
["Nov",100,null,null,50,null,null,null,null,null,"Nov"]
["Dec",100,null,null,50,null,null,null,null,null,"Dec"]
[null,null,null,null,null,null,null,null,null,null,"Annual",{"$f":"AVERAGE(L10:L21)","v":{"$error":"#DIV/0!"}},{"$f":"MAX(M10:M21)","v":0},{"$f":"AVERAGE(N10:N21)","v":{"$error":"#DIV/0!"}},{"$f":"MAX(O10:O21)","v":0}]
[]
[null,null,null,null,null,null,null,null,null,{"$f":"+A9","v":2023},"mg/Nm3","Monthly 1/2 hourly mean","Monthly 1/2 hourly maximum","Monthly daily mean","Monthly daily maximum"]
[null,null,null,null,null,null,null,null,null,"A2","Jan"]
[null,null,null,null,null,null,null,null,null,null,"Feb"]
[null,null,null,null,null,null,null,null,null,null,"Mar"]
[null,null,null,null,null,null,null,null,null,null,"Apr"]
[null,null,null,null,null,null,null,null,null,null,"May"]
[null,null,null,null,null,null,null,null,null,null,"Jun"]
[null,null,null,null,null,null,null,null,null,null,"Jul"]
[null,null,null,null,null,null,null,null,null,null,"Aug"]
[null,null,null,null,null,null,null,null,null,null,"Sep"]
[null,null,null,null,null,null,null,null,null,null,"Oct"]
[null,null,null,null,null,null,null,null,null,null,"Nov"]
[null,null,null,null,null,null,null,null,null,null,"Dec"]
[null,null,null,null,null,null,null,null,null,null,"Annual",{"$f":"AVERAGE(L25:L36)","v":{"$error":"#DIV/0!"}},{"$f":"MAX(M25:M36)","v":0},{"$f":"AVERAGE(N25:N36)","v":{"$error":"#DIV/0!"}},{"$f":"MAX(O25:O36)","v":0}]
[]
[null,null,null,null,null,null,null,null,null,{"$f":"+A9","v":2023},"mg/Nm3","Monthly 1/2 hourly mean","Monthly 1/2 hourly maximum","Monthly daily mean","Monthly daily maximum"]
[null,null,null,null,null,null,null,null,null,"A3","Jan"]
[null,null,null,null,null,null,null,null,null,null,"Feb"]
[null,null,null,null,null,null,null,null,null,null,"Mar"]
[null,null,null,null,null,null,null,null,null,null,"Apr"]
[null,null,null,null,null,null,null,null,null,null,"May"]
[null,null,null,null,null,null,null,null,null,null,"Jun"]
[null,null,null,null,null,null,null,null,null,null,"Jul"]
[null,null,null,null,null,null,null,null,null,null,"Aug"]
[null,null,null,null,null,null,null,null,null,null,"Sep"]
[null,null,null,null,null,null,null,null,null,null,"Oct"]
[null,null,null,null,null,null,null,null,null,null,"Nov"]
["Comments :",null,null,null,null,null,null,null,null,null,"Dec"]
[null,null,null,null,null,null,null,null,null,null,"Annual",{"$f":"AVERAGE(L40:L51)","v":{"$error":"#DIV/0!"}},{"$f":"MAX(M40:M51)","v":0},{"$f":"AVERAGE(N40:N51)","v":{"$error":"#DIV/0!"}},{"$f":"MAX(O40:O51)","v":0}]
[]
[null,null,null,null,null,null,null,null,null,{"$f":"+A9","v":2023},"mg/Nm3","Monthly 1/2 hourly mean","Monthly 1/2 hourly maximum","Monthly daily mean","Monthly daily maximum"]
[null,null,null,null,null,null,null,null,null,null,"Jan"]
[null,null,null,null,null,null,null,null,null,null,"Feb"]
[null,null,null,null,null,null,null,null,null,null,"Mar"]
[null,null,null,null,null,null,null,null,null,null,"Apr"]
[null,null,null,null,null,null,null,null,null,null,"May"]
[null,null,null,null,null,null,null,null,null,null,"Jun"]
[null,null,null,null,null,null,null,null,null,null,"Jul"]
[null,null,null,null,null,null,null,null,null,null,"Aug"]
[null,null,null,null,null,null,null,null,null,null,"Sep"]
[null,null,null,null,null,null,null,null,null,null,"Oct"]
[null,null,null,null,null,null,null,null,null,null,"Nov"]
[null,null,null,null,null,null,null,null,null,null,"Dec"]
[null,null,null,null,null,null,null,null,null,null,"Annual",{"$f":"AVERAGE(L55:L66)","v":{"$error":"#DIV/0!"}},{"$f":"MAX(M55:M66)","v":0},{"$f":"AVERAGE(N55:N66)","v":{"$error":"#DIV/0!"}},{"$f":"MAX(O55:O66)","v":0}]
[null,null,null,null,null,null,null,null,null,{"$f":"+A9","v":2023}]
[null,null,null,null,null,null,null,null,null,"A5","mg/Nm3","Monthly 1/2 hourly mean","Monthly 1/2 hourly maximum","Monthly daily mean","Monthly daily maximum"]
[null,null,null,null,null,null,null,null,null,null,"Jan"]
[null,null,null,null,null,null,null,null,null,null,"Feb"]
[null,null,null,null,null,null,null,null,null,null,"Mar"]
[null,null,null,null,null,null,null,null,null,null,"Apr"]
[null,null,null,null,null,null,null,null,null,null,"May"]
[null,null,null,null,null,null,null,null,null,null,"Jun"]
[null,null,null,null,null,null,null,null,null,null,"Jul"]
[null,null,null,null,null,null,null,null,null,null,"Aug"]
[null,null,null,null,null,null,null,null,null,null,"Sep"]
[null,null,null,null,null,null,null,null,null,null,"Oct"]
[null,null,null,null,null,null,null,null,null,null,"Nov"]
[null,null,null,null,null,null,null,null,null,null,"Dec"]
[null,null,null,null,null,null,null,null,null,null,"Annual",{"$f":"AVERAGE(L70:L81)","v":{"$error":"#DIV/0!"}},{"$f":"MAX(M70:M81)","v":0},{"$f":"AVERAGE(N70:N81)","v":{"$error":"#DIV/0!"}},{"$f":"MAX(O70:O81)","v":0}]

{"sheet":"CO 95% 10 min","index":21,"n_rows":82,"n_cols":19,"rows_kept":82,"cut":false,"hidden":false,"merged":[[4,0,5,7],[6,18,10,20],[12,18,14,20],[15,18,18,20],[69,10,81,10],[7,1,7,4],[7,5,7,7],[7,10,7,16],[9,10,21,10],[24,10,36,10],[39,10,51,10],[50,0,50,7],[51,0,53,7],[54,10,66,10]]}
[{"$f":"+'Cover Page'!$B$29","v":"Annual Performance Report 2023"},null,null,null,{"$f":"+'Cover Page'!$B$33","v":"SELCHP"}]
[]
["Monitoring of Carbon Monoxide (10-minute avg)",null,null,null,"Whole Installation",null,null,"See  Notes in Cell S3",null,{"$f":"+A3","v":"Monitoring of Carbon Monoxide (10-minute avg)"},null,null,null,null,"Per Combustion Line",null,"Notes:",null,"Notes:"]
[]
["Please complete this tab for your plant if you have 10-minute average CO ELVs; otherwise, leave it blank and complete the CO 0.5 hourly tab"]
[]
[null,null,null,null,null,null,null,null,null,null,null,null,null,null,null,null,null,null,"User to add logic to complete Whole installation, Table A5:H18. From the data in Per Combustion Line, Table K6:Q79, subject to No. of lines installed"]
["mg/Nm3","10-minute Reference Periods",null,null,null,"Daily Reference Periods"]
[{"$f":"+'Cover Page'!C39","v":2023},"95%ile 10-min avg CO ELV","95%ile 10-min avg maximum","Monthly CO 10-min avg mean","10-min avg maximum","Daily CO ELV","Monthly daily mean","Highest daily maximum",null,null,{"$f":"+A9","v":2023},"mg/Nm3","95%ile 10-min avg maximum","Monthly CO 10-min avg mean","10-min avg maximum","Monthly daily mean","Monthly daily maximum"]
["Jan",150,52.24,6.3,346.96,50,6.33,10.029999999999999,null,null,"A1","Jan",52.24,5.7,346.96,5.79,10.029999999999999]
["Feb",{"$f":"+B10","v":150},47.75,6.69,741.43,{"$f":"+F10","v":50},6.69,13.28,null,null,null,"Feb",47.75,6.91,741.43,6.92,13.28]
["Mar",{"$f":"+B11","v":150},24.61,5.72,453.12,{"$f":"+F11","v":50},5.72,9.48,null,null,null,"Mar",19,4.68,453.12,4.5999999999999996,7.13,null,"Whole Installation table A5:H18:"]
["Apr",150,23.2,5.55,407.07,50,5.54,9.31,null,null,null,"Apr",23.2,5.12,264.94,5.22,9.31,null,"Mean: for 10-min and daily periods use average of all operational combustion lines."]
["May",150,39.07,5.96,487.77,50,5.88,10.25,null,null,null,"May",39.07,5.36,265.58,5.36,7.48]
["Jun",150,44.09,6.36,1293.6500000000001,50,6.41,14.03,null,null,null,"Jun",44.09,6.84,1293.6500000000001,6.95,14.03]
["Jul",150,25.43,6.37,643.21,50,6.37,13.67,null,null,null,"Jul",25.43,7.88,643.21,7.88,13.67,null,"Maximum: for 10-min and daily periods use the highest of all operational combustion lines in any month."]
["Aug",150,46.59,4.37,659.88,50,4.3,12.58,null,null,null,"Aug",46.59,7.01,659.88,7,12.58]
["Sep",150,11.8,4.74,311.60000000000002,50,4.96,6.9,null,null,null,"Sep",11.8,5.51,311.60000000000002,5.53,6.9]
["Oct",150,89.01,6.34,841.38,50,5.75,17.22,null,null,null,"Oct",89.01,7.51,831.17,6.59,17.22]
["Nov",150,28.61,5.56,1342.55,50,5.59,14.94,null,null,null,"Nov",28.61,5.89,1342.55,5.89,14.94]
["Dec",150,37.450000000000003,5.62,495.33,50,5.65,15.65,null,null,null,"Dec",37.450000000000003,6.73,495.33,6.76,15.65]
[null,null,null,null,null,null,null,null,null,null,null,"Annual",{"$f":"AVERAGE(M10:M21)","v":38.686666666666667},null,{"$f":"MAX(O10:O21)","v":1342.55},{"$f":"AVERAGE(P10:P21)","v":6.2075000000000005},{"$f":"MAX(Q10:Q21)","v":17.22}]
[]
[null,null,null,null,null,null,null,null,null,null,{"$f":"+A9","v":2023},"mg/Nm3","95%ile 10-min avg maximum","Monthly CO 10-min avg mean","10-min avg maximum","Monthly daily mean","Monthly daily maximum"]
[null,null,null,null,null,null,null,null,null,null,"A2","Jan",12.22,7.55,172.29,7.5,8.93]
[null,null,null,null,null,null,null,null,null,null,null,"Feb",11.08,6.46,330.82,6.46,8.35]
[null,null,null,null,null,null,null,null,null,null,null,"Mar",24.61,6.66,225.78,6.67,9.48]
[null,null,null,null,null,null,null,null,null,null,null,"Apr",15.72,6.04,407.07,5.91,9.1199999999999992]
[null,null,null,null,null,null,null,null,null,null,null,"May",23.97,6.6,487.77,6.45,10.25]
[null,null,null,null,null,null,null,null,null,null,null,"Jun",16,5.9,263.70999999999998,5.9,8.82]
[null,null,null,null,null,null,null,null,null,null,null,"Jul",16.420000000000002,4.87,178.24,4.87,7.61]
[null,null,null,null,null,null,null,null,null,null,null,"Aug",12.31,1.78,498.28,1.61,10.52]
[null,null,null,null,null,null,null,null,null,null,null,"Sep",8.6999999999999993,2.59,87.42,2.71,2.71]
[null,null,null,null,null,null,null,null,null,null,null,"Oct",20.29,5.13,841.38,4.8499999999999996,10.16]
[null,null,null,null,null,null,null,null,null,null,null,"Nov",18.98,5.21,452.44,5.25,10.6]
[null,null,null,null,null,null,null,null,null,null,null,"Dec",12.93,4.5,261.74,4.45,6.99]
[null,null,null,null,null,null,null,null,null,null,null,"Annual",{"$f":"AVERAGE(M25:M36)","v":16.102499999999996},null,{"$f":"MAX(O25:O36)","v":841.38},{"$f":"AVERAGE(P25:P36)","v":5.2191666666666672},{"$f":"MAX(Q25:Q36)","v":10.6}]
[]
[null,null,null,null,null,null,null,null,null,null,{"$f":"+A9","v":2023},"mg/Nm3","95%ile 10-min avg maximum","Monthly CO 10-min avg mean","10-min avg maximum","Monthly daily mean","Monthly daily maximum"]
[null,null,null,null,null,null,null,null,null,null,"A3","Jan"]
[null,null,null,null,null,null,null,null,null,null,null,"Feb"]
[null,null,null,null,null,null,null,null,null,null,null,"Mar"]
[null,null,null,null,null,null,null,null,null,null,null,"Apr"]
[null,null,null,null,null,null,null,null,null,null,null,"May"]
[null,null,null,null,null,null,null,null,null,null,null,"Jun"]
[null,null,null,null,null,null,null,null,null,null,null,"Jul"]
[null,null,null,null,null,null,null,null,null,null,null,"Aug"]
[null,null,null,null,null,null,null,null,null,null,null,"Sep"]
[null,null,null,null,null,null,null,null,null,null,null,"Oct"]
[null,null,null,null,null,null,null,null,null,null,null,"Nov"]
["Comments :",null,null,null,null,null,null,null,null,null,null,"Dec"]
["Environment Agency explanatory note: The 10-minute average ELV is based on the “95th percentile”. In this case this means that 95% of the 10 minute averages in the relevant 24-hour period (i.e. 137) must be below 150 mg/Nm3, and 5% (i.e. 7) are allowed to be any value above 150 mg/Nm3. Whilst we expect operators to minimise CO emissions at all times, it is perfectly acceptable for the value of the maximum 10-minute average to be above 150 mg/Nm3, provided the 95th percentile ELV has been met for that period. ",null,null,null,null,null,null,null,null,null,null,"Annual",{"$f":"AVERAGE(M40:M51)","v":{"$error":"#DIV/0!"}},null,{"$f":"MAX(O40:O51)","v":0},{"$f":"AVERAGE(P40:P51)","v":{"$error":"#DIV/0!"}},{"$f":"MAX(Q40:Q51)","v":0}]
[]
[null,null,null,null,null,null,null,null,null,null,{"$f":"+A9","v":2023},"mg/Nm3","95%ile 10-min avg maximum","Monthly CO 10-min avg mean","10-min avg maximum","Monthly daily mean","Monthly daily maximum"]
[null,null,null,null,null,null,null,null,null,null,"A4","Jan"]
[null,null,null,null,null,null,null,null,null,null,null,"Feb"]
[null,null,null,null,null,null,null,null,null,null,null,"Mar"]
[null,null,null,null,null,null,null,null,null,null,null,"Apr"]
[null,null,null,null,null,null,null,null,null,null,null,"May"]
[null,null,null,null,null,null,null,null,null,null,null,"Jun"]
[null,null,null,null,null,null,null,null,null,null,null,"Jul"]
[null,null,null,null,null,null,null,null,null,null,null,"Aug"]
[null,null,null,null,null,null,null,null,null,null,null,"Sep"]
[null,null,null,null,null,null,null,null,null,null,null,"Oct"]
[null,null,null,null,null,null,null,null,null,null,null,"Nov"]
[null,null,null,null,null,null,null,null,null,null,null,"Dec"]
[null,null,null,null,null,null,null,null,null,null,null,"Annual",{"$f":"AVERAGE(M55:M66)","v":{"$error":"#DIV/0!"}},null,{"$f":"MAX(O55:O66)","v":0},{"$f":"AVERAGE(P55:P66)","v":{"$error":"#DIV/0!"}},{"$f":"MAX(Q55:Q66)","v":0}]
[]
[null,null,null,null,null,null,null,null,null,null,{"$f":"+A9","v":2023},"mg/Nm3","95%ile 10-min avg maximum","Monthly CO 10-min avg mean","10-min avg maximum","Monthly daily mean","Monthly daily maximum"]
[null,null,null,null,null,null,null,null,null,null,"A5","Jan"]
[null,null,null,null,null,null,null,null,null,null,null,"Feb"]
[null,null,null,null,null,null,null,null,null,null,null,"Mar"]
[null,null,null,null,null,null,null,null,null,null,null,"Apr"]
[null,null,null,null,null,null,null,null,null,null,null,"May"]
[null,null,null,null,null,null,null,null,null,null,null,"Jun"]
[null,null,null,null,null,null,null,null,null,null,null,"Jul"]
[null,null,null,null,null,null,null,null,null,null,null,"Aug"]
[null,null,null,null,null,null,null,null,null,null,null,"Sep"]
[null,null,null,null,null,null,null,null,null,null,null,"Oct"]
[null,null,null,null,null,null,null,null,null,null,null,"Nov"]
[null,null,null,null,null,null,null,null,null,null,null,"Dec"]
[null,null,null,null,null,null,null,null,null,null,null,"Annual",{"$f":"AVERAGE(M70:M81)","v":{"$error":"#DIV/0!"}},null,{"$f":"MAX(O70:O81)","v":0},{"$f":"AVERAGE(P70:P81)","v":{"$error":"#DIV/0!"}},{"$f":"MAX(Q70:Q81)","v":0}]

{"sheet":"NH3","index":22,"n_rows":79,"n_cols":17,"rows_kept":79,"cut":false,"hidden":false,"merged":[[3,16,7,18],[9,16,11,18],[12,16,15,18],[65,9,77,9],[4,1,4,3],[4,4,4,6],[4,9,4,14],[6,9,18,9],[21,9,33,9],[36,9,48,9],[47,0,47,6],[48,0,51,6],[51,9,62,9],[18,4,18,6]]}
[{"$f":"+'Cover Page'!$B$29","v":"Annual Performance Report 2023"},null,null,null,{"$f":"+'Cover Page'!$B$33","v":"SELCHP"}]
[]
["Monitoring of Ammnonia emissions ",null,null,"Whole Installation",null,null,"See  Notes in Cell Q3",null,null,{"$f":"+A3","v":"Monitoring of Ammnonia emissions "},null,null,null,"Per Combustion Line",null,null,"Notes:"]
[null,null,null,null,null,null,null,null,null,null,null,null,null,null,null,null,"User to add logic to complete Whole installation, Table A5:G18. From the data in Per Combustion Line, Table J6:O79, subject to No. of lines installed"]
["mg/Nm3","1/2 Hourly Reference Periods",null,null,"Daily Reference Periods"]
[{"$f":"+'Cover Page'!C39","v":2023},"1/2 hourly NH3 ELV","Monthly 1/2 hourly mean","Highest 1/2 hourly maximum","Daily NH3 ELV*","Monthly daily mean","Highest daily maximum",null,null,{"$f":"+A6","v":2023},"mg/Nm3","Monthly 1/2 hourly mean","Monthly 1/2 hourly maximum","Monthly daily mean","Monthly daily maximum"]
["Jan","None",1.1599999999999999,11.65,"None",1.1399999999999999,2.91,null,null,"A1","Jan",0.56999999999999995,8.74,0.56999999999999995,1.8]
["Feb",{"$f":"+B7","v":"None"},2.02,10.41,"None",2.02,5.38,null,null,null,"Feb",0.34,4.74,0.34,0.96]
["Mar",{"$f":"+B8","v":"None"},2.23,16.55,"None",2.2999999999999998,7.67,null,null,null,"Mar",0.05,7.14,0.03,0.27,null,"Whole Installation table A5:G18:"]
["Apr","None",1.98,12.57,"None",1.94,5.3,null,null,null,"Apr",0.26,3.27,0.23,0.83,null,"Mean: for 1/2 hourly and daily periods calculate mean of values across all operational combustion lines for the month"]
["May","None",2.41,14.68,"None",2.37,5.96,null,null,null,"May",0.52,5.58,0.52,1.53]
["Jun","None",3.82,18.68,"None",3.84,8.9,null,null,null,"Jun",0.67,7.79,0.64,1.58]
["Jul","None",3.72,27.45,"None",3.72,9.35,null,null,null,"Jul",1.49,27.45,1.5,5.08,null,"Maximum: for 1/2 hourly and daily periods use the highest value across all operational combustion lines for the month"]
["Aug","None",5.33,18.64,"None",5.31,8.44,null,null,null,"Aug",4.49,13.47,4.43,6.06]
["Sep","None",7.01,16.059999999999999,"None",6.97,7.73,null,null,null,"Sep",6.76,16.059999999999999,6.78,7.63]
["Oct","None",3.38,20.95,"None",3.33,6.63,null,null,null,"Oct",3.06,20.27,3.03,5.05]
["Nov","None",5.43,26.2,"None",5.47,9.17,null,null,null,"Nov",6.76,26.2,6.76,9.17]
["Dec","None",3.69,20.149999999999999,15,3.66,8.5500000000000007,null,null,null,"Dec",5.16,20.149999999999999,5.14,8.5500000000000007]
[null,null,null,null,"* ELV came into force on 3 December 2023",null,null,null,null,null,"Annual",{"$f":"AVERAGE(L7:L18)","v":2.5108333333333333},{"$f":"MAX(M7:M18)","v":27.45},{"$f":"AVERAGE(N7:N18)","v":2.4975000000000001},{"$f":"MAX(O7:O18)","v":9.17}]
[]
[null,null,null,null,null,null,null,null,null,{"$f":"+A6","v":2023},"mg/Nm3","Monthly 1/2 hourly mean","Monthly 1/2 hourly maximum","Monthly daily mean","Monthly daily maximum"]
[null,null,null,null,null,null,null,null,null,"A2","Jan",2.4,11.65,2.36,2.91]
[null,null,null,null,null,null,null,null,null,null,"Feb",3.7,10.41,3.7,5.38]
[null,null,null,null,null,null,null,null,null,null,"Mar",4.2,16.55,4.21,7.67]
[null,null,null,null,null,null,null,null,null,null,"Apr",3.91,12.57,3.89,5.3]
[null,null,null,null,null,null,null,null,null,null,"May",4.43,14.68,4.41,5.96]
[null,null,null,null,null,null,null,null,null,null,"Jun",6.86,18.68,6.82,8.9]
[null,null,null,null,null,null,null,null,null,null,"Jul",5.95,17.97,5.95,9.35]
[null,null,null,null,null,null,null,null,null,null,"Aug",6.16,18.64,6.19,8.44]
[null,null,null,null,null,null,null,null,null,null,"Sep",7.73,12.06,7.73,7.73]
[null,null,null,null,null,null,null,null,null,null,"Oct",3.72,20.95,3.65,6.63]
[null,null,null,null,null,null,null,null,null,null,"Nov",4.03,14.9,3.99,5.46]
[null,null,null,null,null,null,null,null,null,null,"Dec",2.19,14.89,2.14,3.17]
[null,null,null,null,null,null,null,null,null,null,"Annual",{"$f":"AVERAGE(L22:L33)","v":4.6066666666666665},{"$f":"MAX(M22:M33)","v":20.95},{"$f":"AVERAGE(N22:N33)","v":4.5866666666666669},{"$f":"MAX(O22:O33)","v":9.35}]
[]
[null,null,null,null,null,null,null,null,null,{"$f":"+A6","v":2023},"mg/Nm3","Monthly 1/2 hourly mean","Monthly 1/2 hourly maximum","Monthly daily mean","Monthly daily maximum"]
[null,null,null,null,null,null,null,null,null,"A3","Jan"]
[null,null,null,null,null,null,null,null,null,null,"Feb"]
[null,null,null,null,null,null,null,null,null,null,"Mar"]
[null,null,null,null,null,null,null,null,null,null,"Apr"]
[null,null,null,null,null,null,null,null,null,null,"May"]
[null,null,null,null,null,null,null,null,null,null,"Jun"]
[null,null,null,null,null,null,null,null,null,null,"Jul"]
[null,null,null,null,null,null,null,null,null,null,"Aug"]
[null,null,null,null,null,null,null,null,null,null,"Sep"]
[null,null,null,null,null,null,null,null,null,null,"Oct"]
[null,null,null,null,null,null,null,null,null,null,"Nov"]
["Comments :",null,null,null,null,null,null,null,null,null,"Dec"]
["An indicated ELV value of zero in the table above means that no ammonia limit is/was set in the permit.  ",null,null,null,null,null,null,null,null,null,"Annual",{"$f":"AVERAGE(L37:L48)","v":{"$error":"#DIV/0!"}},{"$f":"MAX(M37:M48)","v":0},{"$f":"AVERAGE(N37:N48)","v":{"$error":"#DIV/0!"}},{"$f":"MAX(O37:O48)","v":0}]
[]
[null,null,null,null,null,null,null,null,null,{"$f":"+A6","v":2023},"mg/Nm3","Monthly 1/2 hourly mean","Monthly 1/2 hourly maximum","Monthly daily mean","Monthly daily maximum"]
[null,null,null,null,null,null,null,null,null,"A4","Jan"]
[null,null,null,null,null,null,null,null,null,null,"Feb"]
[null,null,null,null,null,null,null,null,null,null,"Mar"]
[null,null,null,null,null,null,null,null,null,null,"Apr"]
[null,null,null,null,null,null,null,null,null,null,"May"]
[null,null,null,null,null,null,null,null,null,null,"Jun"]
[null,null,null,null,null,null,null,null,null,null,"Jul"]
[null,null,null,null,null,null,null,null,null,null,"Aug"]
[null,null,null,null,null,null,null,null,null,null,"Sep"]
[null,null,null,null,null,null,null,null,null,null,"Oct"]
[null,null,null,null,null,null,null,null,null,null,"Nov"]
[null,null,null,null,null,null,null,null,null,null,"Dec"]
[null,null,null,null,null,null,null,null,null,null,"Annual",{"$f":"AVERAGE(L52:L63)","v":{"$error":"#DIV/0!"}},{"$f":"MAX(M52:M63)","v":0},{"$f":"AVERAGE(N52:N63)","v":{"$error":"#DIV/0!"}},{"$f":"MAX(O52:O63)","v":0}]
[null,null,null,null,null,null,null,null,null,{"$f":"+A6","v":2023}]
[null,null,null,null,null,null,null,null,null,"A5","mg/Nm3","Monthly 1/2 hourly mean","Monthly 1/2 hourly maximum","Monthly daily mean","Monthly daily maximum"]
[null,null,null,null,null,null,null,null,null,null,"Jan"]
[null,null,null,null,null,null,null,null,null,null,"Feb"]
[null,null,null,null,null,null,null,null,null,null,"Mar"]
[null,null,null,null,null,null,null,null,null,null,"Apr"]
[null,null,null,null,null,null,null,null,null,null,"May"]
[null,null,null,null,null,null,null,null,null,null,"Jun"]
[null,null,null,null,null,null,null,null,null,null,"Jul"]
[null,null,null,null,null,null,null,null,null,null,"Aug"]
[null,null,null,null,null,null,null,null,null,null,"Sep"]
[null,null,null,null,null,null,null,null,null,null,"Oct"]
[null,null,null,null,null,null,null,null,null,null,"Nov"]
[null,null,null,null,null,null,null,null,null,null,"Dec"]
[null,null,null,null,null,null,null,null,null,null,"Annual",{"$f":"AVERAGE(L67:L78)","v":{"$error":"#DIV/0!"}},{"$f":"MAX(M67:M78)","v":0},{"$f":"AVERAGE(N67:N78)","v":{"$error":"#DIV/0!"}},{"$f":"MAX(O67:O78)","v":0}]